Workbook

Sheet Indice
B1: Sociedad: | C1: TECNOLOGIA DEL SUR S.A.E.(TECSUL S.A.E.) | D1: <-- Colocar Nombre de la Sociedad
S2: 1 | T2: Enero
S3: 2 | T3: Febrero
S4: 3 | T4: Marzo
S5: 4 | T5: Abril
A6: Fecha Presentación: | B6: 2022-09-30 | C6: <-- Completar Fecha en formato | S6: 5 | T6: Mayo
S7: 6 | T7: Junio
S8: 7 | T8: Julio
C9: INDICE | D9: REF. | S9: 8 | T9: Agosto
B10: Informacion General | S10: 9 | T10: Septiembre
C11: Descripción de la naturaleza y del negocio de la Sociedad | D11: Nota 1 | S11: 10 | T11: Octubre
C12: Resumen de las principales políticas contables | D12: Nota 2 | S12: 11 | T12: Noviembre
B13: Balance General | D13: BG | S13: 12 | T13: Diciembre
C14: Efectivo y equivalente de efectivo | D14: Nota 3
C15: Inversiones temporales | D15: Nota 4
C16: Cuentas por cobrar comerciales | D16: Nota 5
C17: Otros créditos | D17: Nota 6
C18: Cuentas por cobrar comerciales | D18: Nota 5
C19: Inventarios | D19: Nota 7
C20: Inversión en asociadas | D20: Nota 8
C21: Propiedades, planta y equipo | D21: Nota 9
C22: Activos disponibles para la venta | D22: Nota 10
C23: Activos intangibles | D23: Nota 11
C24: Goodwill | D24: Nota 12
C25: Cuentas por pagar comerciales | D25: Nota 13
C26: Préstamos a corto plazo | D26: Nota 14
C27: Porción corriente de la deuda a largo plazo | D27: Nota 15
C28: Remuneraciones y cargas sociales a pagar | D28: Nota 16
C29: Impuestos a pagar | D29: Nota 17
C30: Provisiones | D30: Nota 18
C31: Otros pasivos corrientes | D31: Nota 19
C32: Prestamos a largo plazo | D32: Nota 14
C33: Otros pasivos no corrientes | D33: Nota 19
C34: Capital integrado | D34: Nota 20
C35: Reserva de revalúo | D35: Nota 21
C36: Reserva legal | D36: Nota 21
C37: Reservas estatutarias | D37: Nota 21
C38: Reservas facultativas | D38: Nota 21
C39: Diferencia transitoria por conversión | D39: Nota 22
C40: Resultados acumulados | D40: Nota 23
C41: Interés minoritario | D41: Nota 24
B42: Estado de Resultados | D42: ER
C43: Ventas | D43: Nota 25
C44: Costo de ventas | D44: Nota 26
C45: Gastos de ventas | D45: Nota 27
C46: Gastos administrativos | D46: Nota 27
C47: Otros ingresos y gastos operativos | D47: Nota 28
C48: Ingresos financieros - neto | D48: Nota 29
C49: Gastos financieros - neto | D49: Nota 29
C50: Resultado de inversiones en asociadas | D50: Nota 30
C51: Resultado participación minoritaria | D51: Nota 31
C52: Impuesto a la renta | D52: Nota 32
C53: Resultado extraordinario neto de impuesto a la renta | D53: Nota 33
C54: Resultado sobre actividades discontinuadas neto de impuesto a la renta | D54: Nota 34
C55: Utilidad/(Pérdida) neta del año | D55: Nota 35
C56: Utilidad neta por acción ordinaria | D56: Nota 35
B57: Estado de Evolución del Patrimonio Neto | D57: EVPN
B58: Estado de Flujos de Efectivo | D58: EFE
B59: Otras Notas de los Estados Financieros
C60: Activos gravados | D60: Nota 36
C61: Contingencias y compromisos | D61: Nota 37
C62: Impuesto diferido | D62: Nota 38
C63: Hechos posteriores | D63: Nota 39
C64: Saldos y transacciones con partes relacionadas | D64: Nota 40

Sheet BG
D1: =Indice!C1 -> TECNOLOGIA DEL SUR S.A.E.(TECSUL S.A.E.) | E1: Indice
A7: BALANCE GENERAL
A8: =IFERROR(IF(Indice!B6="","Al dia 31 de Marzo de año 2021","Al "&DAY(Indice!B6)&" de "&VLOOKUP(MONTH(Indice!B6),Indice!S:T,2,0)&" de "&YEAR(Indice!B6)),"Al dia... de mes… de año 2XX2…") -> Al 30 de Septiembre de 2022
A9: (En guaraníes)
E11: Nota | F11: 2022 | G11: 2021
B12: ACTIVOS
B13: Activos Corrientes
C14: Efectivo y equivalente de efectivo | E14: 3 | F14: ='Nota 3'!C21 -> 5496601879 | G14: ='Nota 3'!D21 -> 8836449157
C15: Inversiones temporales | E15: 4 | F15: ='Nota 4'!B18 -> 1551053468 | G15: ='Nota 4'!C18 -> 1919884397
C16: Cuentas por cobrar comerciales | E16: 5 | F16: ='Nota 5'!C27 -> 28634976045 | G16: ='Nota 5'!D27 -> 36363062535
C17: Otros créditos | E17: 6 | F17: ='Nota 6'!B42 -> 65107993739 | G17: ='Nota 6'!C42 -> 45828295735
C18: Inventarios | E18: 7 | F18: ='Nota 7'!B16 -> 25130251288 | G18: ='Nota 7'!C16 -> 16125106100
C19: Total activos corrientes | F19: =SUM(F14:F18) -> 125920876419 | G19: =SUM(G14:G18) -> 109072797924
B20: Activos no Corrientes
C21: Otros créditos | E21: 6 | F21: ='Nota 6'!F19 -> 10029888385 | G21: ='Nota 6'!G19 -> 13929035616
C22: Cuentas por cobrar comerciales | E22: 5 | F22: ='Nota 5'!C54 -> 0 | G22: ='Nota 5'!D54 -> 0
C23: Inversión en asociadas | E23: 8 | F23: ='Nota 8'!B8 -> 1943525341 | G23: ='Nota 8'!C8 -> 1913843256
C24: Propiedades, planta y equipo/Bienes de uso, neto | E24: 9 | F24: ='Nota 9'!L35 -> 77504933903 | G24: ='Nota 9'!M35 -> 75546623853
C25: Activos disponibles para la venta | E25: 10 | F25: ='Nota 10'!B19 -> 0 | G25: ='Nota 10'!C19 -> 0
C26: Activos intangibles | E26: 11 | F26: ='Nota 11'!B11 -> 156843474 | G26: ='Nota 11'!C11 -> 214405449
C27: Goodwill | E27: 12 | F27: ='Nota 12'!B11 -> 0 | G27: ='Nota 12'!C11 -> 0
C28: Total activos no corrientes | F28: =SUM(F21:F27) -> 89635191103 | G28: =SUM(G21:G27) -> 91603908174
B29: Total Activos | F29: =+F19+F28 -> 215556067522 | G29: =+G19+G28 -> 200676706098
B30: PASIVOS Y PATRIMONIO NETO
B31: Pasivos corrientes | F31: -1
C32: Cuentas por pagar comerciales | E32: 13 | F32: ='Nota 13'!D17 -> 31900157198 | G32: ='Nota 13'!E17 -> 21016170316
C33: Préstamos a corto plazo | E33: 14 | F33: ='Nota 14'!E51 -> 29229700679 | G33: ='Nota 14'!K51 -> 12707330317
C34: Porción corriente de la deuda a largo plazo | E34: 15 | F34: ='Nota 15'!B15 -> 0 | G34: ='Nota 15'!C15 -> 0
C35: Remuneraciones y cargas sociales a pagar | E35: 16 | F35: ='Nota 16'!B12 -> 913847830 | G35: ='Nota 16'!C12 -> 522259312
C36: Impuestos a pagar | E36: 17 | F36: ='Nota 17'!B13 -> 7512389 | G36: ='Nota 17'!C13 -> 2002713277
C37: Provisiones | E37: 18 | F37: ='Nota 18'!B13 -> 10080800 | G37: ='Nota 18'!C13 -> 3800000
C38: Otros pasivos corrientes | E38: 19 | F38: ='Nota 19'!B22 -> 16498333080 | G38: ='Nota 19'!C22 -> 9712104799
C39: Total Pasivos Corrientes | F39: =SUM(F32:F38) -> 78559631976 | G39: =SUM(G32:G38) -> 45964378021
B40: Pasivos no corrientes
C41: Préstamos a largo plazo | E41: 14 | F41: ='Nota 14'!E84 -> 50324277163 | G41: ='Nota 14'!K84 -> 53503187761
C42: Otros pasivos no corrientes | E42: 19 | F42: ='Nota 19'!F21 -> 26837318044 | G42: ='Nota 19'!G21 -> 42896980730
C43: Total pasivos no corrientes | F43: =SUM(F41:F42) -> 77161595207 | G43: =SUM(G41:G42) -> 96400168491
B45: Total Pasivos | F45: =+F39+F43 -> 155721227183 | G45: =+G39+G43 -> 142364546512
B46: Patrimonio Neto
C47: Capital integrado | E47: 20 | F47: ='Nota 20'!B13 -> 50700000000 | G47: ='Nota 20'!C13 -> 46000000000
C48: Reserva de revalúo | E48: 21 | F48: =' Nota 21'!B8 -> 3950679497 | G48: =' Nota 21'!C8 -> 3950679497
C49: Reserva legal | E49: 21 | F49: =' Nota 21'!B14 -> 2514614544 | G49: =' Nota 21'!C14 -> 2514614544
C50: Reservas estatutarias | E50: 21 | F50: =' Nota 21'!B18 -> 0 | G50: =' Nota 21'!C18 -> 0
C51: Reservas facultatitvas | E51: 21 | F51: =' Nota 21'!B22 -> 0 | G51: =' Nota 21'!C22 -> 0
C52: Diferencia transitoria por conversión | E52: 22 | F52: ='Nota 22'!B8 -> 0 | G52: ='Nota 22'!C8 -> 0
C53: Resultados acumulados | E53: 23 | F53: ='Nota 23'!B10 -> 2669546298 | G53: ='Nota 23'!C10 -> 5846865545
C54: Subtotal | F54: =SUM(F47:F53) -> 59834840339 | G54: =SUM(G47:G53) -> 58312159586
C55: Interés minoritario | E55: 24 | F55: ='Nota 24'!B8 -> 0 | G55: ='Nota 24'!C8 -> 0
B56: Total Patrimonio Neto | F56: =F54 -> 59834840339 | G56: =G54 -> 58312159586
B57: Total Pasivos y Patrimonio Neto | F57: =+F45+F56 -> 215556067522 | G57: =+G45+G56 -> 200676706098
B59: Las notas que se acompañan forman parte integrante de estos estados.

Sheet ER
A1: =Indice!C1 -> TECNOLOGIA DEL SUR S.A.E.(TECSUL S.A.E.) | B1: Indice | D1: =ER!A4 -> 
A7: ESTADO DE RESULTADOS
A8: =IFERROR(IF(Indice!B6="","Al 31... De Marzo de año 2021…","Al "&DAY(Indice!B6)&" de "&VLOOKUP(MONTH(Indice!B6),Indice!S:T,2,0)&" de "&YEAR(Indice!B6)),"Al dia... de mes… de año 2XX2…") -> Al 30 de Septiembre de 2022
A9: Comparativo con igual período del año anterior
A10: (En Guaraníes)
B12: Nota | C12: 2022 | D12: 2021
A13: Ventas | B13: 25 | C13: ='Nota 25'!B31 -> 84367917050 | D13: ='Nota 25'!C31 -> 123366644325
A14: Costo de ventas | B14: 26 | C14: ='Nota 26'!B27 -> 51456654703 | D14: ='Nota 26'!C27 -> 74658289242
A15: Utilidad bruta | C15: =C13-C14 -> 32911262347 | D15: =D13-D14 -> 48708355083
A16: Gastos de ventas | B16: 27 | C16: ='Nota 27'!B68 -> 11180434441 | D16: ='Nota 27'!E68 -> 14940690779
A17: Gastos administrativos | B17: 27 | C17: ='Nota 27'!C68 -> 16694518916 | D17: ='Nota 27'!F68 -> 24054378608
A18: Otros ingresos y gastos operativos | B18: 28 | C18: ='Nota 28'!B13 -> 180462530 | D18: ='Nota 28'!C13 -> 514406083
A19: Resultado operativo | C19: =+C15-C16-C17+C18 -> 5216771520 | D19: =+D15-D16-D17+D18 -> 10227691779
A20: Ingresos financieros - neto | B20: 29 | C20: ='Nota 29'!B13 -> 1848891128 | D20: ='Nota 29'!C13 -> 3438787700
A21: Gastos financieros - neto | B21: 29 | C21: ='Nota 29'!F13 -> 4396116350 | D21: ='Nota 29'!G13 -> 6848213368
A22: Subtotal | C22: =+C19+C20-C21 -> 2669546298 | D22: =+D19+D20-D21 -> 6818266111
A23: Resultado de inversiones en asociadas | B23: 30 | C23: ='Nota 30'!B16 -> 0 | D23: ='Nota 30'!C16 -> 0
A24: Resultados ordinarios antes de impuesto a la renta y participación minoritaria | C24: =C22+C23 -> 2669546298 | D24: =D22+D23 -> 6818266111
A25: Resultado participación minoritaria | B25: 31 | C25: ='Nota 31'!B16 -> 0 | D25: ='Nota 31'!C16 -> 0
A26: Resultado ordinario antes del impuesto a la renta
A27: Impuesto a la renta | B27: 32 | C27: ='Nota 32'!B14 -> 0 | D27: ='Nota 32'!C14 -> 971400566
A28: Resultado neto de actividades ordinarias
A29: Resultado extraordinario neto de impuesto a la renta | B29: 33 | C29: ='Nota 33'!B9 -> 0 | D29: ='Nota 33'!C9 -> 5846865545
A30: Resultado sobre actividades discontinuadas neto de impuesto a la renta | B30: 34 | C30: ='Nota 34'!B12 -> 0 | D30: ='Nota 34'!C12 -> 0
A31: Utilidad/(Pérdida) neta del año | C31: =+C29 -> 0 | D31: =+D29 -> 5846865545
A32: Utilidad neta por acción ordinaria | B32: 35 | C32: ='Nota 35'!B10 -> 52653.77314 | D32: ='Nota 35'!C10 -> 127105.7727
A35: Las notas que se acompañan forman parte integrante de estos estados.

Sheet EVPN
A1: =Indice!C1 -> TECNOLOGIA DEL SUR S.A.E.(TECSUL S.A.E.) | H1: Indice
F4: ESTADO DE EVOLUCIÓN DEL PATRIMONIO NETO
H5: =IFERROR(IF(Indice!B6="","Al 31 de marzo de año 2021","Al "&DAY(Indice!B6)&" de "&VLOOKUP(MONTH(Indice!B6),Indice!S:T,2,0)&" de "&YEAR(Indice!B6)),"Al dia... de mes… de año 2XX2…") -> Al 30 de Septiembre de 2022
A6: Comparativo con igual periodo del año anterior
A7: (En Guaraníes)
C10: Aporte de los propietarios | L10: Ganancias reservadas
C11: Capital suscripto e integrado | D11: Aporte para | F11: Primas de emisión | H11: Reserva de revalúo | J11: Reserva de revalúo técnico | L11: Reserva legal | N11: Reserva facultativa | P11: Resultados acumulados | R11: Interes Minoritario | T11: Total
D12: aumento de capital | P12: Total
A14: =IFERROR(IF(Indice!B6="","Saldo al inicio del ejercicio 2021 ","Saldo al "&DAY(Indice!B6)&" de "&VLOOKUP(MONTH(Indice!B6),Indice!S:T,2,0)&" de "&YEAR(Indice!B6-730)),"Saldo al .. de de 2021 ") -> Saldo al 30 de Septiembre de 2020 | C14: 21000000000 | H14: 3955048833 | L14: 2206884778 | P14: 27228990461 | T14: =+P14+L14+H14+C14 -> 54390924072
A15: Cambio en política contable (Nota….)
A16: Saldo reestructurado | C16: 21000000000 | H16: 3955048833 | L16: 2206884778 | P16: 27228990461 | T16: =+P16+L16+H16+C16 -> 54390924072
A17: Distribución de dividendos s/Acta de Asamblea Ordinaria Nº18 de fecha 30 de abril de 2021 | P17: -27228990461 | T17: -2228990461
A18: Integración del capital social | C18: 25000000000
A19: Reducción del capital social s/Acta de Asamblea General Ordinaria N°… de fecha……..
A20: Revalúo de activos fijos | H20: 0 | T20: 0
A21: Revalúo técnico
A22: Resultado del año | H22: -4369336 | L22: 307729766 | P22: 5846865545 | T22: =+P22+L22+H22 -> 6150225975
A24: =IFERROR(IF(Indice!B6="","Saldo 31 de diciembre de 2021 ","Saldo al "&DAY(Indice!B6)&" de "&VLOOKUP(MONTH(Indice!B6),Indice!S:T,2,0)&" de "&YEAR(Indice!B6-365)),"Saldo al .. de de 20X1 ") -> Saldo al 30 de Septiembre de 2021 | C24: =C16+C17+C18+C19+C20+C21+C22 -> 46000000000 | D24: =SUM(D14:D22) -> 0 | F24: =F16+F17+F18+F19+F20+F21+F22 -> 0 | G24: =SUM(G14:G23) -> 0 | H24: =H16+H17+H18+H19+H20+H21+H22 -> 3950679497 | J24: =J16+J17+J18+J19+J20+J21+J22 -> 0 | L24: =L16+L17+L18+L19+L20+L21+L22 -> 2514614544 | N24: =N16+N17+N18+N19+N20+N21+N22 -> 0 | P24: =P16+P17+P18+P19+P20+P21+P22 -> 5846865545 | R24: =R16+R17+R18+R19+R20+R21+R22 -> 0 | T24: =T16+T17+T18+T19+T20+T21+T22 -> 58312159586
A25: Distribución de dividendos s/Acta de Asamblea General Ordinaria N°21 de fecha 28 de marzo de 2022 | C25: 4700000000 | P25: -5846865545 | T25: -1146865545
A26: Revalúo de activos fijos | L26: 0
A27: Desafectación de la reserva de revalúo técnico
A28: Resultado del año | H28: 0 | L28: 0 | P28: 2669546298 | T28: =+L28+P28+H28 -> 2669546298
A30: =IFERROR(IF(Indice!B6="","Saldo 31 de marzo de 2021 ","Saldo al "&DAY(Indice!B6)&" de "&VLOOKUP(MONTH(Indice!B6),Indice!S:T,2,0)&" de "&YEAR(Indice!B6)),"Saldo al .. de de 20X2 ") -> Saldo al 30 de Septiembre de 2022 | C30: =C24+C25+C26+C27+C28 -> 50700000000 | D30: =SUM(D24:D28) -> 0 | F30: =F24+F25+F26+F27+F28 -> 0 | H30: =H24+H25+H26+H27+H28 -> 3950679497 | J30: =J24+J25+J26+J27+J28 -> 0 | L30: =L24+L25+L26+L27+L28 -> 2514614544 | N30: =N24+N25+N26+N27+N28 -> 0 | P30: =P24+P25+P26+P27+P28 -> 2669546298 | R30: =R24+R25+R26+R27+R28 -> 0 | T30: =+T24+T28+T25+T26 -> 59834840339
A32: Las notas que se acompañan forman parte integrante de estos estados.

Sheet EFE
A1: =Indice!C1 -> TECNOLOGIA DEL SUR S.A.E.(TECSUL S.A.E.)
A5: ESTADO DE FLUJOS DE EFECTIVO (Método directo)
A6: =IFERROR(IF(Indice!B6="","Al 31 de marzo de año 2021","Al "&DAY(Indice!B6)&" de "&VLOOKUP(MONTH(Indice!B6),Indice!S:T,2,0)&" de "&YEAR(Indice!B6)),"Al dia... de mes… de año 2XX2…") -> Al 30 de Septiembre de 2022
A7: Comparativo con igual periodo del año anterior
A8: (En guaraníes)
B11: 2022 | C11: 2021
A13: FLUJO DE EFECTIVO DE ACTIVIDADES OPERATIVAS
A14: Cobranzas efectuadas a clientes | B14: 91196857079 | C14: 143926379108
A15: Pagos efectuados a proveedores y empleados | B15: -37162620103 | C15: -105189065158
A16: Efectivo generado por las operaciones | B16: -37557466744 | C16: -47358516230
A17: Intereses pagados | B17: 1155995653 | C17: 915290546
A18: Otros ingresos y (egresos) - neto | B18: 0 | C18: 0
A19: Pagos de impuesto a la renta | B19: -3621907180 | C19: -124796909
A20: Flujo neto de efectivo de actividades operativas | B20: =SUM(B14:B19) -> 14010858705 | C20: =SUM(C14:C19) -> -7830708643
A22: FLUJO DE EFECTIVO DE ACTIVIDADES DE INVERSIÓN
A23: Adquisición de bienes de uso | B23: -6028718082 | C23: -4198744233
A24: Adquisición de bienes Curtiembre - fideicomitida
A25: Ventas de activos fijos | B25: 0 | C25: 0
A26: Ventas de bienes de uso
A27: Intereses cobrados sobre inversiones
A28: Aquisición de inversiones | B28: 339148844 | C28: -1890202312
A29: Flujo neto de efectivo de actividades de inversión | B29: =SUM(B23:B28) -> -5689569238 | C29: =SUM(C23:C28) -> -6088946545
A31: FLUJO DE EFECTIVO DE ACTIVIDADES DE FINANCIACIÓN
A32: (Disminución) Incremento de préstamos | B32: -11618653994 | C32: 12363083592
A33: Aportes de capital recibidos
A34: Dividendos pagados | B34: 0 | C34: -176952500
A35: Flujo neto de efectivo de actividades de financiamiento | B35: =B32+B33+B34 -> -11618653994 | C35: =C32+C33+C34 -> 12186131092
A37: (Disminución) Incremento neto de efectivo | B37: =+B20+B29+B35 -> -3297364527 | C37: =+C20+C29+C35 -> -1733524096
A38: Efecto estimado de la diferencia de cambio sobre el saldo de efectivo | B38: -42482751 | C38: 308938697
A39: Efectivo al principio del año | B39: 8836449157 | C39: 10261034556
A41: Efectivo al final del periodo | B41: =+SUM(B37:B39) -> 5496601879 | C41: =+SUM(C37:C39) -> 8836449157
A43: Las notas que se acompañan forman parte integrante de estos estados.

Sheet Nota1
A1: =Indice!C1 -> TECNOLOGIA DEL SUR S.A.E.(TECSUL S.A.E.) | I1: BG
A6: NOTAS A LOS ESTADOS FINANCIEROS CORRESPONDIENTES AL PERIODO TERMINADO | H6: =IFERROR(IF(Indice!B6="","Al 31 de marzo de año 2021","Al "&DAY(Indice!B6)&" de "&VLOOKUP(MONTH(Indice!B6),Indice!S:T,2,0)&" de "&YEAR(Indice!B6)),"Al dia... de mes… de año 2XX2…") -> Al 30 de Septiembre de 2022
A7: Presentadas en forma comparativa con el periodo terminado | F7: =IFERROR("Al "&DAY([1]Indice!B6)&" de "&VLOOKUP(MONTH([2]Indice!B6),[2]Indice!S:T,2,0)&" de "&YEAR([2]Indice!B6-365),"Al dia 31 del mes Diciembre de año 2020") -> Al dia 31 del mes Diciembre de año 2020
A11: NOTA 1 – DESCRIPCIÓN DE LA NATURALEZA Y DEL NEGOCIO DE LA COMPAÑÍA
A12: Por el ejercicio correspondiente al período económico comprendido entre el 1 de enero de 2021 al 31 de diciembre de 2021, presentado en forma comparativa con el ejercicio anterior.
A14: Denominación : TECNOLOGIA DEL SUR S.A.E. (TECSUL S.A.E.)
A15: Domicilio Legal : Teniente Ayala Velazquez Nº373 - Asunción - Paraguay
A17: Actividad principal :
A18: a. | B18: Construcción de carreteras y vías férreas, puentes y tuneles.
A19: Actividad secundaria:
A20: a. | B20: Recoleccion de desechos inocuos.
A21: b. | B21: Comercio al por mayor de combustibles, minerales, productos siderúrgicos y químicos a cambio de una retribución o por contrata.
A22: c. | B22: Comercio al por menor de otros materiales de construcción tales como ladrillos, madera, equipo sanitario.
A23: d. | B23: Alquiler y arrendamiento de maquinaria para la construcción sin operario.
A24: e. | B24: Alquiler y arrendamiento de otros tipos de maquinaria, equipo y bienes materiales n.c.p. sin operario.
A25: Inscripciones:
A26: La empresa TECNOLOGIA DEL SUR SOCIEDAD ANONIMA EMISORA se encuentra inscripta en el Registro Unico de Contribuyentes con el Nº 80033539-2, y fue constituida inicialmente bajo la denominación de TECNOLOGIA DEL SUR S.A. el 14 de Setiembre de 2005 según Escritura Pública Nº 19 e inscripta en el Registro Público de Comercio en la seccion Contratos, bajo el Nº 936, Serie C y el folio Nº 4481 y siguientes, Seccion Contratos, de fecha 17 de Octubre de 2005. Luego, por Escritura Nº 4, de fecha 20 de Mayo de 2015 y pasada ante la escribana Ana Vilma Paredes Jara, obrante al folio 11 y siguientes, del protocolo de Contrato Comercial Seccion "B", fué modificado el estatuto social en su Art. 5 por aumento del capital social con emision de acciones, inscribiéndose en el Registro Público de Comercio, Registro de Contratos, bajo el Nº 201, serie E, folio 1956 y siguientes, el 5 de Junio de 2015.
A27: Posteriormente, por Escritura Pública Nº 11 de fecha 20 de Julio de 2018, pasada ante la Esribana Pública Ana Vilma Paredes Jara, obrante al folio 17 y siguientes, del protocolo de Contrato Comercial Seccion "B", fue modificado el estatuto social en su Art. 5º por aumento del capital social de Gs. 10.000.000.000, a Gs. 21.000.000.000, con emisión de acciones, inscribiéndose en el registro Público de Comercio, en Matrícula Comercial Nº 14.995, Serie Comercial, bajo el Nº 01, al folio 01 y siguientes, en fecha 3 de Agosto de 2018. Finalmente, según Escritura Pública Nº 16, obrante al folio 59 y siguientes, del protocolo de Contrato Comercial Sección "A", de fecha 28 de Diciembre de 2018, pasada ante la Escribana Pública Ana Vilma Paredes Jara, fué modificado el Estatuto Social por conversión de S.A. a S.A.E. cuyo testimonio se tomó razón en la Dirección General de Registros Públicos, Registro Público de Comercio, Serie Comercial, anotado bajo el Nº 02, al folio 11-25, en fecha 07 de Febrero de 2019.
A28: Finalmente por Escritura Pública Nº 10 de fecha 07 de enero de 2022, pasada ante la Esribana Pública Ana Vilma Paredes Jara, obrante al folio 26 al 36 , del protocolo de Contrato Comercial Seccion "A", fue modificado el estatuto social en su Art. 5º por aumento del capital social de Gs.21 000 000 000, a Gs. 60.000.000.000, con emisión de acciones, inscribiéndose en el registro Público de Comercio, en Matrícula Comercial Nº 14.995, Serie Comercial, bajo el Nº 3, folio 26 al 36, en fecha 7 de enero de 2022
A29: Inscripción en la Comición Nacional de Valores:
A30: Fecha de vencimiento del estatuto Social: Año 2104

Sheet Nota 2
A1: =Indice!C1 -> TECNOLOGIA DEL SUR S.A.E.(TECSUL S.A.E.) | I1: BG
A6: NOTA 2 - RESUMEN DE LAS PRINCIPALES POLÍTICAS CONTABLES
A7: Resumen de las principales políticas contables: a modo referencial, se incluyen las siguientes revelaciones de políticas contables en estados financieros de uso general que podrá ser tenida en consideración por las sociedades emisoras para la preparación de este capítulo de los estados financieros:
A10: a. Bases de contabilización (Según NIF Bases de preparación de los Estados Financieros)
A11: Los estados financieros han sido preparados en base a la moneda oficial del Paraguay; el Guaraní, de acuerdo a criterios de valores históricos. Excepto por lo expresado en los párrafos c) moneda extranjera y j) valuación de los activos fijos, de esta misma nota, no se ha considerado los efectos que las variaciones en el poder adquisitivo de la moneda nacional pudieran tener sobre los rubros que componen la estructura patrimonial.
A12: De haberse aplicado una corrección monetaria integral de los estados financieros, podrían haber surgido diferencias en la presentación de la situación patrimonial y financiera de la sociedad, en los resultados de sus operaciones y en los flujos de efectivo al ….., y por los ejercicios cerrados el, 31 de ………. de 20X2 y 20X1. Según el índice general de precios del consumo (IPC) publicado por el Banco Central del Paraguay, la inflación fue de 00,0% en el año 20X2 y 00,0% en el año 20X1. Obs: Datos a incorporar para cierre del ejercicio
A15: b. Uso de estimaciones contables
A16: La preparación de los presentes estados financieros requiere que la Gerencia de la sociedad realice estimaciones y evaluaciones que afectan el monto de los activos y pasivos registrados y contingentes, como así también los ingresos y egresos registrados en el ejercicio. Los resultados reales futuros pueden diferir de las estimaciones y evaluaciones realizadas a la fecha de preparación de los presentes estados financieros.
A18: c. Moneda extranjera
A19: Los activos y pasivos en moneda extranjera se valúan a los tipos de cambio vigentes a la fecha de cierre del ejercicio.
A20: Las diferencias de cambio originadas por fluctuaciones en los tipos de cambio producidos entre las fechas de concertación de las operaciones y su liquidación o valuación al cierre del ejercicio, son reconocidas en resultados.
C23: 2022 | G23: 2021
B24: Indicar moneda | C24: Simbología según ISO 4217 | D24: Miles de G. | F24: Indicar moneda | G24: Simbología según ISO 4217 | H24: Miles de G.
A25: Activos | B25: Guaranì | C25: PYG | D25: =+BG!F29/1000 -> 215556067.5 | F25: Guaranì | G25: PYG | H25: =+BG!G29/1000 -> 200676706.1
A27: Pasivos | B27: Guaranì | C27: PYG | D27: =+BG!F45/1000 -> 155721227.2 | F27: Guaranì | G27: PYG | H27: =+BG!G45/1000 -> 142364546.5
A29: Posición neta | D29: =+D25-D27 -> 59834840.34 | H29: =+H25-H27 -> 58312159.59
A32: A la fecha de emisión de estos estados financieros, el tipo de cambio de la moneda extranjera DÓLAR no varió sustancialmente con respecto al vigente al 31 de Diciembre 2019 de tal forma que afecte significativamente los estados financieros y de resultados de la sociedad.
A34: d. Efectivo y equivalentes de efectivo
A35: Se considerarán dentro del concepto de efectivo los saldos en efectivo, disponibilidades en cuentas bancarias y toda inversión de muy alta liquidez, con vencimiento originalmente pactado no superior a tres meses.
A37: e. Inversiones
A38: Como variante a los proyectos publicos,la empresa empezo con un proyecto inmobiliario propio en la ciudad de Asuncion,con el afan de incursionar en este sector comercial, a fin a las actividades que desarrolla la empresa.El proyecto se encuentra en etapa de terminacion.Ver detalle de inversion Nota 8.
A40: f. Previsión para cuentas de dudoso cobro/incobrables
A41: Las previsiones para cuentas de dudoso cobro se determinan al cierre de cada ejercicio, a partir del 1 de octubre la empresa adopto nueva politica, sobre la base del estudio de la cartera de créditos realizado con el objeto de determinar la porción no recuperable de las cuentas a cobrar. Las previsiones para cuentas de dudoso cobro se determinan mensualmente de acuerdo con el siguiente esquema de cálculo:
A42: Normal, de 01 a 90 dias de atraso.
A43: En Gestión de Cobro, de 91 a 1095 dias de atraso.
A44: En Gestión Judicial, de 1096 días de atraso en adelante.
A46: g. Inventarios
A47: Las existencias se valúan al menor entre su costo de adquisición o de producción y su valor neto de realización (NIF 12, párrafo 5). Para determinar el consumo (baja de inventarios) se aplicarán las fórmulas de costeo siguientes: PPP (Precio Promedio Ponderado).
A49: h. Activos disponibles para la venta
A50: A la fecha de éste informe no existen operaciones de la especie constituidas por la empresa.
A51: i. Previsiones para desvalorización y deterioro de inventarios
A52: A la fecha de este informe no fueon constituidas previsiones para desvalorizaciòn y deterioro de inventario.
A53: j. Propiedades, planta y equipo
A54: Según Decreto 3182/19.La cuota de depreciación por desgaste, deterioro u obsolescencia se aplicará sobre el valor del activo fijo, incluido el biológico, de acuerdo con los años de vida útil menos el porcentaje de valor residual
A55: Conforme a la Resol.77/2020.Sera obligatorio a los efectos del presente impuesto,la determinacion del valor residual de los bienes del activo fijo,asi como la depreciacion de estos.El valor residual de un activo fijo sera el importe estimado que el contribuyente podria obtener por la disposicion de un activo al final de su vida util,despues de deducir los costos esperado en dicho momento
A56: Las depreciaciones se realizan a partir del año siguiente de la incorporación de un bien de uso.
A58: k. Intangibles
A59: Los intangibles se exponen a su costo incurrido menos las correspondientes amortizaciones acumuladas al cierre del año.
A60: La composicion de la cuenta consiste en la adquicision de software y licencias de sistemas y son amortizados en cuotas fijas mensuales en un plazo de 5 años
A61: Los cargos diferidos corresponden a las mejoras en propiedad de terceros , son amortizadas en cuotas fijas en un plazo de 5 años.
A63: l. Goodwill
A64: Las estimaciones sobre los flujos de fondos netos son realizadas por la Gerencia sobre la base de las mejores estimaciones disponibles al momento de la preparación de los presentes estados financieros. Tal como lo establece la NIF 13 emitida por el Consejo de Contadores Públicos del Paraguay, el Goodwill no se amortiza, sino se afecta a resultados por su deterioro según la NIF 18.
A65: A la fecha de éste informe no existen operaciones de la especie constituidas por la empresa.
A67: m. Reconocimiento de ingresos y egresos
A68: Los ingresos son reconocidos en función de su devengamiento.
A69: Los gastos de administración, financieros y diversos fueron reconocidos en función al devengamiento de los mismos.
A71: n. Impuesto a la renta
A72: Grava todas las rentas,los beneficios o las ganancias de fuente paraguaya que provengan de todo tipo de actividades economicas,incluidas las agropecuarias,comerciales,industriales o de servicios,excluidas aquellas rentas gravadas por el IRP.Para calcular el impuesto,se basa en la utilidad contable antes de dicho concepto,ajustada por las partidas que las normativas vigentes incluyen o excluyen para la determinacion de la utilidad contable gravable,a la cual se le aplica una tasa del 10%.
A73: Con la vigencia de la Ley 6380/19,cuando las utilidades fueren distribuidas,las mismas estaran alcanzadas por el impuesto a los Dividendos y a las Utilidades - IDU,a una tasas del 8% para los accionistas residentes y del 15 % para los no residentes,a ser aplicados sobre el monto pagado o acreditado.
A75: o. Restricciones a la distribución de utilidades
A76: A la fecha de este informe, no existen restricciones a la distribución de utilidades.
A78: p. Derechos en Fideicomiso
A79: A la fecha de éste informe no existen operaciones de la especie constituidas por la empresa.
A81: q. Otros principios, prácticas y métodos
A82: A la fecha de éste informe no existen otros principios, pàcticas o mètodos seguidos por la empresa.

Sheet Nota 3
A1: =Indice!C1 -> TECNOLOGIA DEL SUR S.A.E.(TECSUL S.A.E.) | E1: BG
A2: Obs.: Revelar situación en el caso de contar con disponibilidad restringida
A7: NOTA 3 - EFECTIVO Y EQUIVALENTE DE EFECTIVO
A8: En guaranies
A9: La composición de la cuenta es la siguiente:
A11: Concepto | C11: 2022 | D11: 2021
A12: Fondo Fijos Obras | C12: 68455335 | D12: 25526567
A13: Fondo Fijos Administracion | C13: 38337757 | D13: 33869298
A14: Bancos Locales - Moneda local Guaraníes | C14: 3091193352 | D14: 4834354170
A15: Bancos Locales - Moneda extranjera Dólares | C15: 1368118 | D15: 43676514
A16: Bancos Locales - Moneda extranjera otros | C16: 14517318 | D16: 192089268
A17: Bancos en el Extranjero - Moneda extranjera Dólares | C17: 0 | D17: 0
A18: Recaudacion a Depositar | C18: 276164695 | D18: 263813633
A19: Cheques diferidos a cobrar | C19: 1963936349 | D19: 3380152957
A20: Caja Moneda Extranjera Dolares | C20: 42628955 | D20: 62966750
A21: Total | C21: =SUM($C$12:C20) -> 5496601879 | D21: =SUM(D12:D20) -> 8836449157

Sheet Nota 4
A1: =Indice!C1 -> TECNOLOGIA DEL SUR S.A.E.(TECSUL S.A.E.) | D1: BG
A3: NO APLICABLE
A4: NOTA 4 - INVERSIONES TEMPORALES
A6: La composición de la cuenta es la siguiente:
B7: En guaranies
A8: Concepto | B8: 2022 | C8: 2021
A9: Inversiones en Titulos del Sistema Financiero Local - Moneda Local Guaraníes | B9: 0 | C9: 0
A10: Inversiones en Titulos del Sistema Financiero Local - Moneda Extranjera Dólares | B10: 0 | C10: 0
A11: Inversiones en Titulos del Sistema Financiero Local - Moneda Extranjera otros | B11: 0 | C11: 0
A12: Inversiones en Mercado Bursatil Local - Moneda Local Guaraníes | B12: 0 | C12: 0
A13: Inversiones en Mercado Bursatil Local - Moneda Extranjera Dólares | B13: 0 | C13: 0
A14: Inversiones en Mercado Bursatil Extranjera - Moneda Extranjera Dólares | B14: 0 | C14: 0
A15: Inversiones en Mercado Bursatil Extranjera - Moneda Extranjera otros | B15: 0 | C15: 0
A16: Otras inversiones - Moneda Local Guaraníes | B16: 1551053468 | C16: 1919884397
A17: Otras inversiones - Moneda Extranjera Dólares | B17: 0 | C17: 0
A18: Total | B18: =SUM($B$9:B17) -> 1551053468 | C18: =SUM($C$9:C17) -> 1919884397

Sheet Nota 5
A1: =Indice!C1 -> TECNOLOGIA DEL SUR S.A.E.(TECSUL S.A.E.) | F1: BG
A2: Detallar cartera vencida y no vencida por clientes locales, extranjeros y partes relacionadas
A3: Se indicarán en este rubro todos los créditos a favor de la empresa provenientes de las ventas de Mercaderías y/o servicios (atendiendo a la actividades ordinarias de la empresa), separando las ventas locales en moneda nacional y/o extranjera de las ventas fuera del país en moneda nacional y/o extranjera
A5: NOTA 5 – CUENTAS POR COBRAR COMERCIALES
A6: Las cuentas a cobrar comerciales a corto plazo se integran como sigue:
C7: En guaraníes
C8: 2022 | D8: 2021 | F8: Composición de la cartera de créditos por ventas | G8: 2022-06-30
A9: Deudores por ventas locales | B9: Moneda Local Guaraníes | C9: 37817889193 | D9: 60148883475 | F9: Situación | G9: Monto | H9: % Previsiones sobre Cartera
A10: Deudores por ventas locales | B10: Moneda Extranjera Dólares | C10: 0 | D10: 0 | F10: A Total Cartera no Vencida | G10: 4647592386 | H10: 0
A11: Deudores por ventas locales | B11: Moneda Extranjera otros | C11: 0 | D11: 0 | F11: B. Total Cartera Vencida | G11: 33170296807
A12: Deudores por ventas en el exterior | B12: Moneda Local Guaraníes | C12: 0 | D12: 0 | F12: Composición Cartera Vencida
A13: Deudores por ventas en el exterior | B13: Moneda Extranjera Dólares | C13: 0 | D13: 0 | F13: Normal | G13: 0 | H13: 0
A14: Deudores por ventas en el exterior | B14: Moneda Extranjera otros | C14: 0 | D14: 0 | F14: En Gestión de Cobro | G14: 0 | H14: 0
A15: Deudores - Entidad relacionada | B15: Moneda Local Guaraníes | C15: 3603343903 | D15: 454921428 | F15: En Gestión de Cobro Judicial | G15: 0 | H15: 0
A16: Deudores - Entidad relacionada | B16: Moneda Extranjera Dólares | C16: 0 | D16: 0
A17: Deudores - Entidad relacionada | B17: Moneda Extranjera otros | C17: 0 | D17: 0 | F17: Total de la cartera de créditos (A+B) | G17: =G10+G11 -> 37817889193
A18: Cheques adelantados recibidos de clientes | B18: Moneda Local Guaraníes | C18: 0 | D18: 0
A19: Cheques adelantados recibidos de clientes | B19: Moneda Extranjera Dólares | C19: 0 | D19: 0 | F19: (-) Total Previsiones | G19: =-((G10*H10)+(SUMPRODUCT(G13:G15,H13:H15))) -> 0
A20: Cheques adelantados recibidos de clientes | B20: Moneda Extranjera otros | C20: 0 | D20: 0
A21: Cheques rechazados | B21: Moneda Local Guaraníes | C21: 0 | D21: 0 | F21: TOTAL NETO DE LA CARTERA DE CRÉDITOS | G21: =G17+G19 -> 37817889193
A22: Cheques rechazados | B22: Moneda Extranjera Dólares | C22: 0 | D22: 0
A23: Otros | B23: Moneda Local Guaraníes | C23: 0 | D23: 0 | F23: Observaciones
A24: Otros | B24: Moneda Extranjera Dólares | C24: 0 | D24: 0 | F24: Criterios de Clasificación utilizados | G24: De | H24: A
A25: Otros | B25: Moneda Extranjera otros | C25: 0 | D25: 0 | F25: Normal | G25: 1 | H25: 90
A26: (Menos) Cesion de Derechos BBVA | C26: -12786257051 | D26: -24240742368 | F26: En Gestión de Cobro | G26: 91 | H26: 1095
A27: Total | C27: =+SUM($C$9:C26) -> 28634976045 | D27: =+SUM($D$9:D26) -> 36363062535 | F27: En Gestión de Cobro Judicial | G27: 1096
A30: Las cuentas a cobrar comerciales a largo plazo se integran como sigue:
C31: En guaraníes
C32: 2022 | D32: 2021
A33: Deudores por ventas locales | B33: Moneda Local Guaraníes | C33: 0 | D33: 0
A34: Deudores por ventas locales | B34: Moneda Extranjera Dólares | C34: 0 | D34: 0
A35: Deudores por ventas locales | B35: Moneda Extranjera otros | C35: 0 | D35: 0
A36: Deudores por ventas en el exterior | B36: Moneda Local Guaraníes | C36: 0 | D36: 0
A37: Deudores por ventas en el exterior | B37: Moneda Extranjera Dólares | C37: 0 | D37: 0
A38: Deudores por ventas en el exterior | B38: Moneda Extranjera otros | C38: 0 | D38: 0
A39: Deudores - Entidad relacionada | B39: Moneda Local Guaraníes | C39: 0 | D39: 0
A40: Deudores - Entidad relacionada | B40: Moneda Extranjera Dólares | C40: 0 | D40: 0
A41: Deudores - Entidad relacionada | B41: Moneda Extranjera otros | C41: 0 | D41: 0
A42: Cheques adelantados recibidos de clientes | B42: Moneda Local Guaraníes | C42: 0 | D42: 0
A43: Cheques adelantados recibidos de clientes | B43: Moneda Extranjera Dólares | C43: 0 | D43: 0
A44: Cheques adelantados recibidos de clientes | B44: Moneda Extranjera otros | C44: 0 | D44: 0
A45: Deudores en gestión judicial | B45: Moneda Local Guaraníes | C45: 0 | D45: 0
A46: Deudores en gestión judicial | B46: Moneda Extranjera Dólares | C46: 0 | D46: 0
A47: Deudores en gestión judicial | B47: Moneda Extranjera otros | C47: 0 | D47: 0
A48: Cheques rechazados | B48: Moneda Local Guaraníes | C48: 0 | D48: 0
A49: Cheques rechazados | B49: Moneda Extranjera Dólares | C49: 0 | D49: 0
A50: Otros | B50: Moneda Local Guaraníes | C50: 0 | D50: 0
A51: Otros | B51: Moneda Extranjera Dólares | C51: 0 | D51: 0
A52: Otros | B52: Moneda Extranjera otros | C52: 0 | D52: 0
A53: Menos Previsiones | C53: 0 | D53: 0
A54: Total | C54: =+SUM($C$33:C53) -> 0 | D54: =+SUM($D$33:D53) -> 0

Sheet Nota 6
A1: =Indice!C1 -> TECNOLOGIA DEL SUR S.A.E.(TECSUL S.A.E.) | D1: BG
A4: NOTA 6 - OTROS CRÉDITOS
A5: En guaranies
A6: El rubro de otros créditos se compone como sigue:
A8: Corrientes | E8: No corrientes
A10: Concepto | B10: 2022 | C10: 2021 | E10: Concepto | F10: 2022 | G10: 2021
A11: Anticipos a proveedores | B11: 906956383 | C11: 908713744 | E11: Garantía de Alquiler | F11: 0 | G11: 0
A12: Gastos pagados por adelantado | B12: 0 | C12: 0 | E12: I.V.A. Crédito fiscal | F12: 0 | G12: 0
A13: Anticipo Impuesto a la Renta | B13: 0 | C13: 0 | E13: Anticipos a proveedores | F13: 0 | G13: 0
A14: Retención Impuesto a la Renta | B14: 2905915956 | C14: 2680997426 | E14: Intereses a Devengar-Prestamo | F14: 510192415 | G14: 809411273
A15: Retención Impuesto al Valor agregado | B15: 1345249733 | C15: 0 | E15: Intereses a Devengar-IVA | F15: 90003530 | G15: 330878927
A16: Certificado a Facturar | B16: 16230523398 | C16: 6939491314 | E16: Intereses a Devengar Proveedores | F16: 366751752 | G16: 1098368928
A17: Costos de Obras en Ejecucion | B17: 1040720157 | C17: 0 | E17: Intereses a Devengar Bursatiles GS. | F17: 8074691786 | G17: 10374623294
A18: Retenciones (FONDO DE GARANTIA) | B18: 12032908753 | C18: 9239366572 | E18: Intereses a Devengar Bursatiles USD | F18: 988248902 | G18: 1315753194
A19: IVA Crédito 10% | B19: 0 | C19: 0 | E19: Total | F19: =SUM(F11:F18) -> 10029888385 | G19: =SUM(G11:G18) -> 13929035616
A20: Cuentas a Cobrar a Directores y Funcionarios | B20: 398123605 | C20: 107123605
A21: Prestamos a Terceros | B21: 26600958 | C21: 469917297
A22: Anticipo compras de Inmuebles | B22: 2022636364 | C22: 2127900000
A23: Participaciones Consorciales | B23: 8255000000 | C23: 8255000000
A24: Garantía de Alquiler | B24: 7476190 | C24: 7476190
A25: Intereses a Devengar-Prestamo | B25: 2289371623 | C25: 1043688421
A26: Intereses a Devengar-IVA | B26: 328845679 | C26: 323273461
A27: Intereses a Devengar-IPS | B27: 0 | C27: 6690991
A28: Intereses a Devengar-Proveedores | B28: 1359568072 | C28: 908976554
A29: Otras cuentas por cobrar | B29: 4275975000 | C29: 1627124820
A30: Costos de Obras en Ejecucion | B30: 0 | C30: 0
A31: Intereses varios a cobrar | B31: 3325941640 | C31: 1502491693
A32: Anticipo a contratista | B32: 0 | C32: 319569000
A33: Seguros a Devengar | B33: 904004884 | C33: 903497546
A34: Anticipo compras | B34: 162996244 | C34: 0
A35: Deudores varios | B35: 50000000 | C35: 0
A36: IVA pago no Aplicados | B36: 24702892 | C36: 24702892
A37: Anticipo a personal superior Directores | B37: 640259312 | C37: 527262610
A38: Anticipo a Rendir | B38: 1766234990 | C38: 3454286099
A39: Intereses a Devengar Bursatiles GS. | B39: 3066575344 | C39: 3066575344
A40: Intereses a Devengar Bursatiles USD | B40: 436673040 | C40: 437868934
A41: Anticipo extraordinario de Dividendos | B41: 1304733522 | C41: 946301222
A42: Total | B42: =SUM($B$11:B41) -> 65107993739 | C42: =SUM(C11:C41) -> 45828295735

Sheet Nota 7
A1: =Indice!C1 -> TECNOLOGIA DEL SUR S.A.E.(TECSUL S.A.E.) | D1: BG
A4: NOTA 7 – INVENTARIOS
A6: Los bienes de cambio están compuestos de la siguiente manera:
B7: En guaranies
A8: Concepto | B8: 2022 | C8: 2021
A9: Mercaderías-Piedra | B9: 4875226650 | C9: 0
A10: Productos terminados | B10: 768062444 | C10: 0
A11: Productos en proceso | B11: 0 | C11: 0
A12: Materia prima | B12: 0 | C12: 0
A13: Materiales,suministros y Repuestos | B13: 18813119194 | C13: 15451263100
A14: Importaciones en curso | B14: 673843000 | C14: 673843000
A15: (-) Previsión para desvalorización y deterioro de inventario | B15: 0 | C15: 0
A16: Total | B16: =SUM(B9:B15) -> 25130251288 | C16: =SUM(C9:C15) -> 16125106100

Sheet Nota 8
A1: =Indice!C1 -> TECNOLOGIA DEL SUR S.A.E.(TECSUL S.A.E.) | D1: BG
A4: Nota 8 - INVERSIONES EN ASOCIADAS
A5: En guaraníes
A6: Las inversiones en sociedades donde no se ejerce control se describen a continuación
A7: Periodo | B7: 2022 | C7: 2021
A8: Total Inversión | B8: 1943525341 | C8: 1913843256 | D8: <-- Indicar Monto
A10: a) Datos sobre la sociedad: | G10: a) Datos sobre la inversión:
D11: 2021
A12: Nombre de Sociedad | B12: RUC | C12: Cantidad de acciones | D12: Total Patrimonio neto | E12: Total del resultado | G12: Cantidad de acciones | H12: Participación sobre los votos (%) | I12: Total Inversión ( Gs) | J12: Participación sobre el Patrimonio Neto (%) | K12: Total valuación patrimonial proporcional | L12: Resultado sobre inversiones
A13: Angostura Tecnologia S.A. | B13: 80085671-6 | C13: 46 | D13: 9118627829 | E13: -3461327358 | G13: 46 | H13: 0.12 | I13: 460000000 | J13: 0.12 | K13: =J13*D13 -> 1094235339 | L13: =J13*E13 -> -415359283
A14: A porte de capital a Integrar Antec S.A. | B14: 80085671-6 | C14: Aporte a integrar | G14: Aporte a integrar | H14: 0.12 | I14: 520453931 | J14: 0.12 | K14: =J14*D14 -> 0 | L14: 0
A15: Consorcio Emprendimientos del Sur | B15: 80050333-3 | C15: Aporte Consorcial | D15: 3918121030 | E15: 3735082145 | G15: Aporte Consorcial | H15: 50% de participacion | I15: 1009109878 | J15: 0.5 | K15: =J15*D15 -> 1959060515 | L15: =J15*E15 -> 1867541072
A16: Consorcio Obras Industriales | B16: 80087173-1 | C16: Aporte Consorcial | D16: 602091968 | E16: 600761320 | G16: Aporte Consorcial | H16: 33,4% de participacion | I16: 151515000 | J16: 0.334 | K16: =J16*D16 -> 201098717.3 | L16: 200654280.9
A17: Radix S.A. | B17: 80117775-8 | C17: 50 | H17: 0.5 | I17: 1353500000 | J17: 0.5 | K17: =J17*D17 -> 0 | L17: 0
K18: 0 | L18: 0

Sheet Nota 9
A1: =Indice!C1 -> TECNOLOGIA DEL SUR S.A.E.(TECSUL S.A.E.) | L1: BG
A5: Obs.:
A6: Incluir aclaraciones en los siguientes casos:
A7: 1. Cuando los bienes de uso tienen alguna restricción sobre su utilización, como por ejemplo cuando están garantizando obligaciones. En su caso también hacer referencia a la nota correspondiente.
A8: 2. Cuando exista alguna previsión por desvalorización (“deterioro”), detallando la evolución de la misma en el transcurso del año.
A9: 3. Si se están capitalizando intereses al costo de bienes de uso. En su caso deberá aclararse la tasa utilizada para la capitalización.
A10: Ver adicionalmente Norma de Información Financiera N° 11 Propiedades, planta y equipo
A12: NOTA 9 - PROPIEDADES, PLANTA Y EQUIPO - NETO
A13: En guaraníes | J13: -1
B15: Costo histórico revaluado al inicio del año | C15: Adquisiciones | D15: Bajas | E15: Revalúo del año | F15: Valor de origen revaluado al final del año | G15: Depreciación acumulada revaluada al inicio del año | H15: Depreciación del año | I15: Bajas de depreciaciones acumuladas | J15: Revalúo depreciación acumulada del año | K15: Depreciación acumulada revaluada al final del año | L15: Valor neto contable
L16: 2022 | M16: 2021
A17: Instalaciones | B17: 525483606 | C17: =792983094-37954545 -> 755028549 | D17: 0 | E17: 0 | F17: =+B17+C17-D17+E17 -> 1280512155 | G17: 51221469 | H17: 39354435 | I17: 0 | J17: 0 | K17: =+H17-I17+J17 -> 39354435 | L17: =+F17-K17 -> 1241157720 | M17: =+B17 -> 525483606
A18: Rodados | B18: 3757695042 | C18: 1736574331 | D18: 0 | E18: 0 | F18: 5494269373 | G18: 3052412334 | H18: 783960507 | I18: 0 | J18: 0 | K18: =+G18+H18-I18 -> 3836372841 | L18: =+F18-H18+I18 -> 4710308866 | M18: 3757695042
A19: Equipos de Informatica | B19: 212925850 | C19: 55964545 | D19: 0 | E19: 0 | F19: 268890395 | G19: 331917034 | H19: 85329747 | I19: 0 | J19: 0 | K19: =+G19+H19-I19 -> 417246781 | L19: =+F19-H19 -> 183560648 | M19: 212925850
A20: Muebles y útiles | B20: 874234418 | C20: 37718080 | D20: 17868080 | E20: 0 | F20: 894084418 | G20: 352108655 | H20: 142516071 | I20: 0 | J20: 0 | K20: =+G20+H20-I20 -> 494624726 | L20: 751568347 | M20: 874234418
A21: Equipos de comunicación | B21: 4174303 | C21: 3381819 | D21: 0 | E21: 0 | F21: 7556122 | G21: 1923476 | H21: 659502 | I21: 0 | J21: 0 | K21: 2582978 | L21: =+F21-H21 -> 6896620 | M21: 4174303
A22: Maquinarias y Equipos | B22: 64151708062 | C22: 1177600042 | D22: 0 | E22: 0 | F22: 65329308104 | G22: 21330367841 | H22: 5280719562 | I22: 0 | J22: 0 | K22: =+G22+H22-I22 -> 26611087403 | L22: 60048588542 | M22: 64151708062
A23: Gastos de Organización | B23: 0 | C23: 2500000000 | D23: 0 | E23: 0 | F23: 2500000000 | G23: 0 | H23: 0 | I23: 0 | J23: 0 | K23: 0 | L23: 2500000000 | M23: 0
A24: Equipos fotograficos | B24: 11884368 | C24: 0 | D24: 0 | E24: 0 | F24: 11884368 | G24: 10742880 | H24: 1474992 | I24: 0 | J24: 0 | K24: 12217872 | L24: 10409376 | M24: 11884368
A25: Carteles y Letreros | B25: 676391 | C25: 0 | D25: 0 | E25: 0 | F25: 676391 | G25: 856225 | H25: 102951 | I25: 0 | J25: 0 | K25: 959176 | L25: 573440 | M25: 676391
A26: Inmuebles | B26: 4493531649 | C26: 2163248000 | D26: 0 | E26: 0 | F26: 6656779649 | G26: 0 | H26: 0 | I26: 0 | J26: 0 | K26: 0 | L26: 6656779649 | M26: 4493531649
A27: Motobomba | B27: 2551349 | C27: 14800797 | D27: 0 | E27: 0 | F27: 17352146 | G27: 6241817 | H27: 322596 | I27: 0 | J27: 0 | K27: 6564413 | L27: 17029550 | M27: 2551349
A28: Equipos de Oficina | B28: 92767186 | C28: 64315454 | D28: 0 | E28: 0 | F28: 157082640 | G28: 2422408 | H28: 11513592 | I28: 0 | J28: 0 | K28: 13936000 | L28: 145569048 | M28: 92767186
A29: Avioneta | B29: 2170115786 | C29: 0 | D29: 0 | E29: 0 | F29: 2170115786 | G29: 188705720 | H29: 144674388 | I29: 0 | J29: 0 | K29: 333380108 | L29: 2025441398 | M29: 2170115786
A30: Herramientas | B30: 9122291 | C30: 0 | D30: 0 | E30: 0 | F30: 9122291 | G30: 1061345 | H30: 1394694 | I30: 0 | J30: 0 | K30: 2456039 | L30: 7727597 | M30: 9122291
A31: Mejoras en propiedad de Terceros | B31: 311568068 | C31: 0 | D31: 0 | E31: 0 | F31: 311568068 | G31: 189166327 | H31: 33382296 | I31: 0 | J31: 0 | K31: =+G31+H31-I31 -> 222548623 | L31: =+F31-H31 -> 278185772 | M31: 311568068
A32: Mejoras en inmuebles propios | B32: 212256103 | C32: 0 | D32: 0 | E32: 0 | F32: =+B32 -> 212256103 | G32: 0 | H32: 15919209 | I32: 0 | J32: 0 | K32: =+G32+H32-I32 -> 15919209 | L32: =+F32-H32 -> 196336894 | M32: 212256103
A33: Equipos de Topografias | B33: 0 | C33: 8871055 | F33: =+B33 -> 0 | G33: 0 | I33: 0 | J33: 0 | K33: 0 | L33: 8871055 | M33: 0
A34: Depreciaciones Acumuladas de AF del periodo 2018 al 2016 | B34: -1284070619 | C34: 0 | D34: 0 | E34: 0 | F34: 0 | G34: 1284070619 | H34: 0 | I34: 0 | J34: 0 | K34: 1284070619 | L34: -1284070619 | M34: -1284070619
A35: Totales | B35: =SUM(B17:B34) -> 75546623853 | C35: =SUM(C17:C34) -> 8517502672 | D35: =SUM(D17:D34) -> 17868080 | E35: 0 | F35: =SUM(F17:F34) -> 85321458009 | G35: =SUM(G17:G34) -> 26803218150 | H35: =SUM(H17:H34) -> 6541324542 | I35: =SUM(I17:I34) -> 0 | J35: 0 | K35: =SUM(K17:K34) -> 33293321223 | L35: =SUM($L$17:L34) -> 77504933903 | M35: =SUM($M$17:M34) -> 75546623853

Sheet Nota 10
A1: =Indice!C1 -> TECNOLOGIA DEL SUR S.A.E.(TECSUL S.A.E.) | C1: BG
A3: NO APLICABLE
A4: NOTA 10 – ACTIVOS DISPONIBLES PARA LA VENTA
B5: En guaranies
B6: 2022 | C6: 2021
A7: Propiedad, planta y equipo
A8: (Detallar bienes de uso)
A9: Total | B9: =B8 -> 0 | C9: =C8 -> 0
A11: Activos intangibles
A12: (Detallar activos intangibles)
A13: Total | B13: =B12 -> 0 | C13: =C12 -> 0
A15: Inversiones
A16: (Detallar Inversiones
A17: Total | B17: =B16 -> 0 | C17: =C16 -> 0
A19: Total general | B19: =B9+B13+B17 -> 0 | C19: =C9+C13+C17 -> 0

Sheet Nota 11
A1: =Indice!C1 -> TECNOLOGIA DEL SUR S.A.E.(TECSUL S.A.E.) | F1: BG
A4: NOTA 11 – ACTIVOS INTANGIBLES
B5: En guaranies
A6: Activos intangibles | B6: 2022 | C6: 2021
A7: Software | B7: 295752253 | C7: 295752253
A8: Licencias de Sistemas | B8: 107928350 | C8: 107928350
A9: Menos amortización acumulada | B9: -246837129 | C9: -189275154
A11: Total general | B11: =SUM(B7:B10) -> 156843474 | C11: =SUM(C7:C10) -> 214405449

Sheet Nota 12
A1: =Indice!C1 -> TECNOLOGIA DEL SUR S.A.E.(TECSUL S.A.E.) | E1: BG
B3: NO APLICABLE
A5: NOTA 12 – GOODWILL
B6: En guaranies
A7: Goodwill | B7: 2022 | C7: 2021
A11: Total general | B11: =SUM(B8:B10) -> 0 | C11: =SUM(C8:C10) -> 0

Sheet Nota 13
C1: BG
A4: NOTA 13 – CUENTAS POR PAGAR COMERCIALES
A5: En guaranies
A6: Las cuentas por pagar comerciales se componen como sigue:
A8: Corrientes | B8: Simbología según ISO 4217 | C8: Indicación de Moneda | D8: 2022 | E8: 2021
A9: Proveedores - Entidades Relacionadas | C9: =IFERROR(VLOOKUP(B9,'[3]Base de Monedas'!A:B,2,0),"") -> 
A10: Otros proveedores del exterior | B10: USD | C10: =IFERROR(VLOOKUP(B10,'[3]Base de Monedas'!A:B,2,0),"") -> Dólar estadounidense | D10: 1907853745 | E10: 1361029108
A11: Otros proveedores del exterior | B11: EUR | C11: Euros | D11: 3243155588 | E11: 4707051523
A12: Proveedores locales-moneda local | B12: PYG | C12: =IFERROR(VLOOKUP(B12,'[3]Base de Monedas'!A:B,2,0),"") -> Guaraní | D12: 16137993126 | E12: 5799253284
A13: Proveedores locales-moneda extranjera | B13: USD | C13: =IFERROR(VLOOKUP(B13,'[3]Base de Monedas'!A:B,2,0),"") -> Dólar estadounidense | D13: 10309918095 | E13: 8824912363
A14: Proveedores Importacion | B14: USD | C14: =IFERROR(VLOOKUP(B14,'[3]Base de Monedas'!A:B,2,0),"") -> Dólar estadounidense | D14: 0 | E14: 0
A15: Otros acreedores | B15: PYG | C15: =IFERROR(VLOOKUP(B15,'[3]Base de Monedas'!A:B,2,0),"") -> Guaraní | D15: 285614159 | E15: 314559680
A16: Cheques emitidos No Cobrados | B16: PYG | C16: Guaraní | D16: 15622485 | E16: 9364358
A17: Total cuentas a pagar por comerciales | D17: =SUM($D$9:D16) -> 31900157198 | E17: =SUM($E$9:E16) -> 21016170316
A21: No Corrientes | B21: Simbología según ISO 4217 | C21: Indicación de Moneda | D21: 2022 | E21: 2021
A22: Proveedores - Entidades Relacionadas | B22: PYG | C22: =IFERROR(VLOOKUP(B22,'Base de Monedas'!A:B,2,0),"") -> Guaraní | D22: 0 | E22: 0
A23: Otros proveedores del exterior | B23: USD | C23: =IFERROR(VLOOKUP(B23,'Base de Monedas'!A:B,2,0),"") -> Dólar estadounidense | D23: 2714899531 | E23: 3837020341
A24: Proveedores locales Moneda Local | B24: PYG | C24: =IFERROR(VLOOKUP(B24,'Base de Monedas'!A:B,2,0),"") -> Guaraní | D24: 32773000 | E24: 65129081
A25: Otros proveedores del exterior | B25: EUR | C25: Euros | D25: 5157810850 | E25: 6666200916
A26: Proveedores locales-moneda extranjera | B26: USD | C26: =IFERROR(VLOOKUP(B26,'Base de Monedas'!A:B,2,0),"") -> Dólar estadounidense | D26: 3238467768 | E26: 6477713151
A27: Otros acreedores | B27: USD | C27: =IFERROR(VLOOKUP(B27,'Base de Monedas'!A:B,2,0),"") -> Dólar estadounidense | D27: 0 | E27: 0
A28: Total cuentas a pagar por comerciales | D28: =SUM($D$22:D27) -> 11143951149 | E28: =SUM($E$22:E27) -> 17046063489

Sheet Nota 14
A1: =Indice!C1 -> TECNOLOGIA DEL SUR S.A.E.(TECSUL S.A.E.) | E1: BG | L1: BG
A4: NOTA 14 – PRESTAMOS A CORTO Y LARGO PLAZO
A6: (a) Equivalentes al tipo de cambio referencial de la fecha de presentacion
A7: (b) Obligaciones garantizadas por valor de guaraníes………..
A9: Corrientes
D10: 2022 | J10: 2021
A11: Préstamos de Entidades Locales | B11: Vencimiento | C11: Símbolo de Moneda | D11: Moneda | E11: Importe (miles de Gs) | F11: Tipo de Garantía | H11: Vencimiento | I11: Símbolo de Moneda | J11: Moneda | K11: Importe (miles de Gs) | L11: Tipo de Garantía
A12: Banco Itau S.A. | B12: 2024-12-25 | C12: PYG | D12: Guaraní | E12: 232715126 | F12: Co deudoria
A13: Banco Itau S.A. | B13: 2022-10-24 | C13: PYG | D13: Guaraní | E13: 3800000000 | F13: Co deudoria
A14: Banco Familiar S.A.E.C.A | B14: 2022-12-13 | C14: PYG | D14: Guaraní | E14: 703687128 | F14: Co deudoria | H14: 2022-02-04 | I14: PYG | J14: Guaraní | K14: 362008403 | L14: Co deudoria
A15: Banco Familiar S.A.E.C.A | B15: 2022-12-21 | C15: PYG | D15: Guaraní | E15: 856653735 | F15: Co deudoria | H15: 2022-03-19 | I15: PYG | J15: Guaraní | K15: 326691636 | L15: Co deudoria
A16: Banco Familiar S.A.E.C.A | B16: 2023-02-03 | C16: PYG | D16: Guaraní | E16: 603571822 | F16: Co deudoria | H16: 2022-04-25 | I16: PYG | J16: Guaraní | K16: 688565448 | L16: Co deudoria
A17: Banco Familiar S.A.E.C.A | B17: 2023-03-13 | C17: PYG | D17: Guaraní | E17: 703687127 | F17: Co deudoria
A18: Banco Familiar S.A.E.C.A | B18: 2023-04-13 | C18: PYG | D18: Guaraní | E18: 604959842 | F18: Co deudoria
A19: Banco Familiar S.A.E.C.A | B19: 2023-06-19 | C19: PYG | D19: Guaraní | E19: 856653735 | F19: Co deudoria
A20: Banco Familiar S.A.E.C.A | B20: 2023-09-10 | C20: PYG | D20: Guaraní | E20: 604959842 | F20: Co deudoria
A21: Banco Sudameris S.A.E.C.A | B21: 2023-12-20 | C21: PYG | D21: Guaraní | E21: 457500000 | F21: Co deudoria | H21: 2023-12-20 | I21: PYG | J21: Guaraní | K21: 366000000 | L21: Co deudoria
A22: Banco Regional S.A.E.C.A. | B22: 2026-04-18 | C22: PYG | D22: Guaraní | E22: 39582056 | F22: Co deudoria
A23: Banco Regional S.A.E.C.A. | B23: 2023-07-23 | C23: PYG | D23: Guaraní | E23: 1900000000 | F23: Co deudoria
A24: Banco Regional S.A.E.C.A. | B24: 2023-07-31 | C24: PYG | D24: Guaraní | E24: 1200000000 | F24: Co deudoria
A25: Banco Regional S.A.E.C.A. | B25: 2023-08-03 | C25: PYG | D25: Guaraní | E25: 2800000000 | F25: Co deudoria
A26: Bancop S.A. | B26: 2023-03-04 | C26: PYG | D26: Guaraní | E26: 750000000 | F26: Co deudoria | H26: 2022-03-03 | I26: PYG | J26: Guaraní | K26: 125000000 | L26: Co deudoria
A27: Bancop S.A. | B27: 2023-03-26 | C27: PYG | D27: Guaraní | E27: 375000000 | F27: Co deudoria | H27: 2022-04-12 | I27: PYG | J27: Guaraní | K27: 500000000 | L27: Co deudoria
A28: Bancop S.A. | B28: 2023-09-22 | C28: PYG | D28: Guaraní | E28: 375000000 | F28: Co deudoria
A29: Financiera Paraguayo Japonesa S.A.E.C.A. | B29: 2023-09-04 | C29: PYG | D29: Guaraní | E29: 1013875847 | F29: Co deudoria | H29: 2022-07-01 | I29: PYG | J29: Guaraní | K29: 1607040000 | L29: Co deudoria
A30: Financiera Paraguayo Japonesa S.A.E.C.A. | B30: 2023-03-03 | C30: PYG | D30: Guaraní | E30: 434660153 | F30: Co deudoria
A31: Financiera el Comercio S.A.E.C.A. | H31: 2022-02-05 | I31: PYG | J31: Guaraní | K31: 1498679496 | L31: Co deudoria
A32: Banco Nacional de Fomento | B32: 2026-07-23 | C32: PYG | D32: Guarani | E32: 240000000 | F32: Co deudoria | H32: 2026-07-23 | I32: PYG | J32: Guarani | K32: 120000000 | L32: Co deudoria
A33: Banco Nacional de Fomento | B33: 2027-04-10 | C33: PYG | D33: Guarani | E33: 620000000 | F33: Co deudoria | H33: 2027-04-10 | I33: PYG | J33: Guarani | K33: 310000000 | L33: Co deudoria
A34: Cheques Diferidos | E34: 4359749033 | K34: 2235964487
A35: Sobregiros en Cuenta Corriente | E35: 0 | K35: 2272053
A36: Tarjeta de credito Empresarial | E36: 23365685 | K36: 16976095
A37: Deudas bursátiles | D37: =IFERROR(VLOOKUP(C37,'Base de Monedas'!A:B,2,0),"") ->  | J37: =IFERROR(VLOOKUP(I37,'Base de Monedas'!A:B,2,0),"") -> 
A38: (Incluir programas de forma individual) | D38: =IFERROR(VLOOKUP(C38,'Base de Monedas'!A:B,2,0),"") ->  | J38: =IFERROR(VLOOKUP(I38,'Base de Monedas'!A:B,2,0),"") -> 
A39: Préstamos de Entidades en el Exterior | D39: =IFERROR(VLOOKUP(C39,'Base de Monedas'!A:B,2,0),"") ->  | J39: =IFERROR(VLOOKUP(I39,'Base de Monedas'!A:B,2,0),"") -> 
A40: Nombre de la entidad financiera | D40: =IFERROR(VLOOKUP(C40,'Base de Monedas'!A:B,2,0),"") ->  | J40: =IFERROR(VLOOKUP(I40,'Base de Monedas'!A:B,2,0),"") -> 
A41: Nombre de la entidad financiera | D41: =IFERROR(VLOOKUP(C41,'Base de Monedas'!A:B,2,0),"") ->  | J41: =IFERROR(VLOOKUP(I41,'Base de Monedas'!A:B,2,0),"") -> 
A42: (incluir otras entidades) | D42: =IFERROR(VLOOKUP(C42,'Base de Monedas'!A:B,2,0),"") ->  | J42: =IFERROR(VLOOKUP(I42,'Base de Monedas'!A:B,2,0),"") -> 
A43: Deudas bursátiles | D43: =IFERROR(VLOOKUP(C43,'Base de Monedas'!A:B,2,0),"") ->  | J43: =IFERROR(VLOOKUP(I43,'Base de Monedas'!A:B,2,0),"") -> 
A44: (Incluir programas de forma individual) | D44: =IFERROR(VLOOKUP(C44,'Base de Monedas'!A:B,2,0),"") ->  | J44: =IFERROR(VLOOKUP(I44,'Base de Monedas'!A:B,2,0),"") -> 
A45: Intereses préstamos entidades financieras a pagar | D45: =IFERROR(VLOOKUP(C45,'Base de Monedas'!A:B,2,0),"") ->  | J45: =IFERROR(VLOOKUP(I45,'Base de Monedas'!A:B,2,0),"") -> 
A46: Intereses a pagar | C46: PYG | D46: =IFERROR(VLOOKUP(C46,'Base de Monedas'!A:B,2,0),"") -> Guaraní | E46: 2170831164 | I46: PYG | J46: =IFERROR(VLOOKUP(I46,'Base de Monedas'!A:B,2,0),"") -> Guaraní | K46: 1043688421
A47: (-) Intereses a Devengar | C47: PYG | D47: Guaraní | E47: -2170831164 | I47: PYG | J47: Guaraní | K47: -1043688421
A48: Intereses deudas bursátiles a pagar | D48: =IFERROR(VLOOKUP(C48,'Base de Monedas'!A:B,2,0),"") -> 
A49: Intereses a pagar | D49: =IFERROR(VLOOKUP(C49,'Base de Monedas'!A:B,2,0),"") ->  | E49: 3503248384 | K49: 3504444278
A50: (-) Intereses a Devengar | D50: =IFERROR(VLOOKUP(C50,'Base de Monedas'!A:B,2,0),"") ->  | E50: -3503248384 | K50: -3504444278
A51: Total | D51: =IFERROR(VLOOKUP(C51,'Base de Monedas'!A:B,2,0),"") ->  | E51: =SUM(E12:E50)+E46+E49 -> 29229700679 | K51: =SUM(K12:K50)+K46+K49 -> 12707330317
A54: No Corrientes
B55: 2022 | J55: 2020
A56: Préstamos de Entidades Locales | B56: Vencimiento | C56: Símbolo de Moneda | D56: Moneda | E56: Importe (miles de Gs) | F56: Tipo de garantía | H56: Vencimiento | I56: Símbolo de Moneda | J56: Moneda | K56: Importe (miles de Gs) | L56: Tipo de Garantía
A57: Banco Sudameris S.A.E.C.A | B57: 2023-12-20 | C57: PYG | D57: Guarani | E57: 91500000 | F57: Co deudoria | H57: 2023-12-20 | I57: PYG | J57: =IFERROR(VLOOKUP(I57,'[3]Base de Monedas'!A:B,2,0),"") -> Guaraní | K57: 366000000 | L57: Co deudoria
A58: Banco Regional S.A.E.C.A | B58: 2026-04-18 | C58: PYG | D58: Guarani | E58: 118746168 | F58: Co deudoria
A59: Banco Nacional de Fomento | B59: 2026-07-23 | C59: PYG | D59: Guarani | E59: 720000000 | F59: Co deudoria | H59: 2026-07-23 | I59: PYG | J59: =IFERROR(VLOOKUP(I59,'[3]Base de Monedas'!A:B,2,0),"") -> Guaraní | K59: 840000000 | L59: Co deudoria
A60: Banco Nacional de Fomento | B60: 2027-04-10 | C60: PYG | D60: Guarani | E60: 2480000000 | F60: Co deudoria | H60: 2027-04-10 | I60: PYG | J60: Guarani | K60: 2910000000 | L60: Co deudoria
A61: Banco Itau Paraguay S.A. | B61: 2024-12-25 | C61: PYG | D61: Guarani | E61: 342894816 | F61: Co deudoria
A62: Deudas bursátiles | D62: =IFERROR(VLOOKUP(C62,'Base de Monedas'!A:B,2,0),"") ->  | J62: =IFERROR(VLOOKUP(I62,'Base de Monedas'!A:B,2,0),"") -> 
A63: Emision Global de Bonos G1-Serie 1(Uno) PYTSU01F2040 | B63: 2025-09-09 | C63: PYG | D63: Guarani | E63: 5000000000 | F63: Sola Firma | H63: 2025-09-09 | I63: PYG | J63: Guarani | K63: 5000000000 | L63: Sola Firma
A64: Emision Global de Bonos G1-Serie 2(Dos) PYTSU01F2056 | B64: 2026-03-10 | C64: PYG | D64: Guarani | E64: 5000000000 | F64: Sola Firma | H64: 2026-03-10 | I64: PYG | J64: Guarani | K64: 5000000000 | L64: Sola Firma
A65: Emision Global de Bonos G1-Serie 3(Tres) PYTSU03F2063 | B65: 2026-09-08 | C65: PYG | D65: Guarani | E65: 5000000000 | F65: Sola Firma | H65: 2026-09-08 | I65: PYG | J65: Guarani | K65: 5000000000 | L65: Sola Firma
A66: Emision Global de Bonos G1-Serie 4(Tres) PYTSU04F2377 | B66: 2025-10-16 | C66: PYG | D66: Guarani | E66: 5000000000 | F66: Sola Firma | H66: 2025-10-16 | I66: PYG | J66: Guarani | K66: 5000000000 | L66: Sola Firma
A67: Emision Global de Bonos G1-Serie 5(Tres) PYTSU05F2384 | B67: 2026-04-16 | C67: PYG | D67: Guarani | E67: 5000000000 | F67: Sola Firma | H67: 2026-04-16 | I67: PYG | J67: Guarani | K67: 5000000000 | L67: Sola Firma
A68: Emision Global de Bonos G1-Serie 6(Tres) PYTSU06F2391 | B68: 2026-10-15 | C68: PYG | D68: Guarani | E68: 5000000000 | F68: Sola Firma | H68: 2026-10-15 | I68: PYG | J68: Guarani | K68: 5000000000 | L68: Sola Firma
A69: Emision Global de Bonos USD1-Serie 1(uno) PYTSU01F2073 | B69: 2025-09-09 | C69: USD | D69: Guarani | E69: 3443700000 | F69: Sola Firma | H69: 2025-09-09 | I69: USD | J69: Guarani | K69: 3443700000 | L69: Sola Firma
A70: Emision Global de Bonos USD1-Serie 2(Dos) PYTSU01F2080 | B70: 2026-03-10 | C70: USD | D70: Guarani | E70: 3443700000 | F70: Sola Firma | H70: 2026-03-10 | I70: USD | J70: Guarani | K70: 3443700000 | L70: Sola Firma
A71: (Incluir programas de forma individual) | D71: =IFERROR(VLOOKUP(C71,'Base de Monedas'!A:B,2,0),"") ->  | J71: =IFERROR(VLOOKUP(I71,'Base de Monedas'!G:H,2,0),"") -> 
A72: Préstamos de Entidades en el Exterior | D72: =IFERROR(VLOOKUP(C72,'Base de Monedas'!A:B,2,0),"") ->  | J72: =IFERROR(VLOOKUP(I72,'Base de Monedas'!A:B,2,0),"") -> 
A73: Nombre de la entidad financiera | D73: =IFERROR(VLOOKUP(C73,'Base de Monedas'!A:B,2,0),"") ->  | J73: =IFERROR(VLOOKUP(I73,'Base de Monedas'!A:B,2,0),"") -> 
A74: Nombre de la entidad financiera | D74: =IFERROR(VLOOKUP(C74,'Base de Monedas'!A:B,2,0),"") ->  | J74: =IFERROR(VLOOKUP(I74,'Base de Monedas'!A:B,2,0),"") -> 
A75: (incluir otras entidades) | D75: =IFERROR(VLOOKUP(C75,'Base de Monedas'!A:B,2,0),"") ->  | J75: =IFERROR(VLOOKUP(I75,'Base de Monedas'!A:B,2,0),"") -> 
A76: Deudas bursátiles | D76: =IFERROR(VLOOKUP(C76,'Base de Monedas'!A:B,2,0),"") ->  | J76: =IFERROR(VLOOKUP(I76,'Base de Monedas'!A:B,2,0),"") -> 
A77: (Incluir programas de forma individual) | D77: =IFERROR(VLOOKUP(C77,'Base de Monedas'!A:B,2,0),"") ->  | J77: =IFERROR(VLOOKUP(I77,'Base de Monedas'!A:B,2,0),"") -> 
A78: Intereses préstamos entidades financieras a pagar | D78: =IFERROR(VLOOKUP(C78,'Base de Monedas'!A:B,2,0),"") ->  | J78: =IFERROR(VLOOKUP(I78,'Base de Monedas'!A:B,2,0),"") -> 
A79: Intereses a pagar | C79: PYG | D79: =IFERROR(VLOOKUP(C79,'Base de Monedas'!A:B,2,0),"") -> Guaraní | E79: 620795491 | I79: PYG | J79: =IFERROR(VLOOKUP(I79,'Base de Monedas'!A:B,2,0),"") -> Guaraní | K79: 809411273
A80: (-) Intereses a Devengar | C80: PYG | D80: Guarani | E80: -620795491 | I80: PYG | J80: Guaraní | K80: -809411273
A81: Intereses deudas bursátiles a pagar | D81: =IFERROR(VLOOKUP(C81,'Base de Monedas'!A:B,2,0),"") ->  | J81: =IFERROR(VLOOKUP(I81,'Base de Monedas'!A:B,2,0),"") -> 
A82: Intereses a pagar | D82: =IFERROR(VLOOKUP(C82,'Base de Monedas'!A:B,2,0),"") ->  | E82: 9062940688 | J82: =IFERROR(VLOOKUP(I82,'Base de Monedas'!A:B,2,0),"") ->  | K82: 11690376488
A83: (-) Intereses a Devengar | D83: =IFERROR(VLOOKUP(C83,'Base de Monedas'!A:B,2,0),"") ->  | E83: -9062940688 | K83: -11690376488
A84: Total | D84: =IFERROR(VLOOKUP(C84,'Base de Monedas'!A:B,2,0),"") ->  | E84: =SUM(E57:E83)+E79+E82 -> 50324277163 | J84: =IFERROR(VLOOKUP(I84,'Base de Monedas'!A:B,2,0),"") ->  | K84: =SUM(K57:K83)+K79+K82 -> 53503187761
J85: =IFERROR(VLOOKUP(I85,'Base de Monedas'!H:I,2,0),"") -> 

Sheet Nota 15
A1: =Indice!C1 -> TECNOLOGIA DEL SUR S.A.E.(TECSUL S.A.E.) | D1: BG
A3: NO APLICABLE
A5: NOTA 15 – PORCION CORRIENTE DE LA DEUDA A LARGO PLAZO
B7: En guaranies
A8: Porción corriente de la deuda a largo plazo | B8: 2022 | C8: 2021
A9: Cuentas por pagar comerciales
A10: Préstamos bancarios
A11: Bonos bursátiles
A12: Intereses bancarios a pagar
A13: Intereses bursatiles a pagar
A14: (nuevas cuentas a incluir)
A15: Total general | B15: =SUM($B$9:B14) -> 0 | C15: =SUM($C$9:C14) -> 0

Sheet Nota 16
A1: =Indice!C1 -> TECNOLOGIA DEL SUR S.A.E.(TECSUL S.A.E.) | F1: BG
A4: NOTA 16 – REMUNERACIONES Y CARGAS SOCIALES A PAGAR
B6: En guaranies
A7: Remuneraciones y cargas sociales a pagar | B7: 2022 | C7: 2021
A8: Sueldos y otras remuneraciones a pagar | B8: 621241775 | C8: 0
A9: Aportes y retenciones a pagar | B9: 291684284 | C9: 522259312
A10: Remuneraciones al personal superior a pagar | B10: 0 | C10: 0
A11: Retencion Judicial a empleados | B11: 921771 | C11: 0
A12: Total | B12: =SUM($B$8:B11) -> 913847830 | C12: =SUM($C$8:C11) -> 522259312

Sheet Nota 17
A1: =Indice!C1 -> TECNOLOGIA DEL SUR S.A.E.(TECSUL S.A.E.) | G1: BG
A5: NOTA 17 – IMPUESTOS A PAGAR
B7: En guaranies
A8: Impuestos a pagar | B8: 2022 | C8: 2021
A9: Impuesto a la renta a pagar | B9: 0 | C9: 971400566
A10: Otros impuestos a pagar | B10: 7512389 | C10: 32953398
A11: IVA Débito Fiscal 10% a Pagar | B11: 0 | C11: 998359313
A13: Total | B13: =SUM($B$9:B12) -> 7512389 | C13: =SUM($C$9:C12) -> 2002713277

Sheet Nota 18
A1: =Indice!C1 -> TECNOLOGIA DEL SUR S.A.E.(TECSUL S.A.E.) | D1: BG
A4: NOTA 18 - PROVISIONES
B6: En guaranies
A7: Provisiones | B7: 2022 | C7: 2021
A9: Alquileres a Pagar | B9: 2100000 | C9: 3800000
A10: Servicios Basicos a Pagar | B10: 0 | C10: 0
A11: Honorarios Profesionales a Pagar | B11: 0 | C11: 0
A12: Garantia de alquiler | B12: 7980800 | C12: 0
A13: Total | B13: =SUM($B$9:B12) -> 10080800 | C13: =SUM($C$9:C12) -> 3800000

Sheet Nota 19
A1: =Indice!C1 -> TECNOLOGIA DEL SUR S.A.E.(TECSUL S.A.E.) | D1: BG
A3: NOTA 19 – OTROS PASIVOS CORRIENTES y NO CORRIENTES
A4: En guaranies
A6: Corrientes | B6: 2022 | C6: 2021 | E6: No Corrientes | F6: 2022 | G6: 2021
A7: Retencion de IVA a pagar | B7: 0 | C7: 0 | E7: Retencion de IVA a pagar | F7: 0 | G7: 0
A8: Retencion Impuesto a la renta a Pagar | B8: 0 | C8: 0 | E8: Retencion Impuesto a la renta a Pagar | F8: 0 | G8: 0
A9: Impuestos diferidos | B9: 0 | C9: 0 | E9: Impuestos diferidos | F9: 0 | G9: 0
A10: Otros ingresos diferidos (Anticipo de Obras) | B10: 13159732357 | C10: 9256964198 | E10: Otros ingresos diferidos (Anticipo de Obras) | F10: 15603363365 | G10: 25520038314
A11: Otros Pasivos con Entidades relacionadas | B11: 0 | C11: 0 | E11: Otros Pasivos con Entidades relacionadas | F11: 0 | G11: 0
A12: Previsiones para contingencias/Indemnizaciones y despidos | B12: 0 | C12: 0 | E12: Previsiones para contingencias/Indemnizaciones y despidos | F12: 0 | G12: 0
A13: Deudas Fiscales corto plazo | B13: 606542480 | C13: 418409657 | E13: Deudas Fiscales Largo plazo | F13: 90003530 | G13: 330878927
A14: Otros acreedores Corto plazo | B14: 0 | C14: 0 | E14: Otros acreedores Largo plazo | F14: 0 | G14: 0
A15: Dividendos a Pagar | B15: 0 | C15: 0 | E15: Intereses a Pagar IVA DGR | F15: 0 | G15: 0
A16: Anticipo de Clientes | B16: 2430360391 | C16: 26842938 | E16: Intereses a Pagar Facilidad - IPS | F16: 0 | G16: 0
A17: Otros intereses a pagar | B17: 350988 | C17: 3197015 | E17: Ips a pagar Facilidad de Pago | F17: 0 | G17: 0
A18: Intereses a Pagar Facilidad - IPS | B18: 0 | C18: 6690991 | E18: Proveedores Locales Largo Plazo | F18: 32773000 | G18: 65129081
A19: Intereses a Pagar IVA DGR | B19: 0 | C19: 0 | E19: Proveedores del Exterior Largo Plazo | F19: 7872710381 | G19: 10503221257
A20: Retencion IDU a Pagar | B20: 0 | C20: 0 | E20: Proveedores Moneda Extranjera Largo Plazo | F20: 3238467768 | G20: 6477713151
A21: Retencion Fondo de Garantia a Pagar | B21: 301346864 | C21: 0 | E21: Total | F21: =SUM(F7:F20) -> 26837318044 | G21: =SUM(G7:G20) -> 42896980730
A22: Total | B22: =SUM(B7:B21) -> 16498333080 | C22: =SUM(C7:C19) -> 9712104799

Sheet Nota 20
A1: =Indice!C1 -> TECNOLOGIA DEL SUR S.A.E.(TECSUL S.A.E.) | D1: BG
A4: NOTA 20 – CAPITAL INTEGRADO
A6: Fecha | B6: 2022 | C6: 2021
A7: Monto Capital Social | B7: =+B8 -> 50700000000 | C7: 46000000000
A8: Monto Capital Integrado | B8: 50700000000 | C8: 21000000000
A9: Aporte Irrevocable para Futuro Aumento | B9: 0 | C9: 0
A10: Capital a Integrar | B10: 0 | C10: 25000000000
A11: Cantidad de Acciones | B11: 50700 | C11: 46000
A12: Valor Nominal de Acciones | B12: 1000000 | C12: 1000000
A13: Total | B13: =+B8+B10 -> 50700000000 | C13: 46000000000

Sheet Nota 21
A1: =Indice!C1 -> TECNOLOGIA DEL SUR S.A.E.(TECSUL S.A.E.) | F1: BG
A4: NOTA 21 – RESERVAS
B6: En guaranies
B7: 2022 | C7: 2021
A8: a Reserva de revalúo | B8: 3950679497 | C8: 3950679497
A14: b Reserva legal | B14: 2514614544 | C14: 2514614544
A18: c Reservas estatutarias
A22: d Reservas facultativas | B22: =+SUM($B$23:B28) -> 0 | C22: =+SUM($C$23:C28) -> 0
A23: N/A

Sheet Nota 22
A1: =Indice!C1 -> TECNOLOGIA DEL SUR S.A.E.(TECSUL S.A.E.) | F1: BG
A3: NO APLICABLE
A4: NOTA 22 – DIFERENCIA TRANSITORIA POR CONVERSION
B6: En guaranies
B7: 2022 | C7: 2021
A8: Diferencia transitoria por conversión

Sheet Nota 23
A1: =Indice!C1 -> TECNOLOGIA DEL SUR S.A.E.(TECSUL S.A.E.) | F1: BG
A4: NOTA 23 – RESULTADOS ACUMULADOS
B6: En guaranies
B7: 2022 | C7: 2021
A8: Resultado de ejercicios anteriores | B8: 0 | C8: 0
A9: Resultado del ejercicio actual | B9: 2669546298 | C9: 5846865545
A10: Totales | B10: =SUM($B$8:B9) -> 2669546298 | C10: =SUM($C$8:C9) -> 5846865545

Sheet Nota 24
A1: =Indice!C1 -> TECNOLOGIA DEL SUR S.A.E.(TECSUL S.A.E.) | F1: BG
B3: NO APLICABLE
A4: NOTA 24 – INTERES MINORITARIO
B6: En guaranies
B7: 2022 | C7: 2021
A8: Interes Minoritario

Sheet Nota 25
A1: =Indice!C1 -> TECNOLOGIA DEL SUR S.A.E.(TECSUL S.A.E.) | E1: ER
A5: NOTA 25 – VENTAS
B8: En Guaranies
B9: 2022 | C9: 2021
A10: Ventas
A11: VENTAS DE SERVICIOS SECTOR PUBLICO
A12: Local
A13: Ingresos por certificado de Obras | B13: 38182325603 | C13: 66095997473
A14: Ventas de Alquiler de Equipos y Maquinarias | B14: 721362728 | C14: 4025157277
A15: Ingresos por certificado Alquiler de Maquinarias | B15: 1089351819 | C15: 0
A16: Ventas de servicios sector publico | B16: 1467728496 | C16: 2295031199
A18: VENTAS DE SERVICIOS SECTOR PRIVADO
A19: Local
A20: Ingresos por certificado de Obras | B20: 25576406254 | C20: 25520405960
A21: Ingresos por certificado Alquiler de Equipos y Maquinarias | B21: 1447571865 | C21: 0
A22: Ventas de Alquiler de Equipos y Maquinarias | B22: 3150793217 | C22: 6990973205
A23: Ventas de servicios sector privado | B23: 9091647134 | C23: 11689844604
A24: (-) Descuentos Concedidos | B24: -407992195 | C24: -1103871286
A26: VENTAS DE MERCADERIAS
A27: Local
A28: Ventas de mercaderias gravadas por el IVA | B28: 1054028807 | C28: 4329481644
A29: Ventas de mercaderias exentas de IVA | B29: 2818644168 | C29: 1529655691
A30: Ventas por productos de Explotacion Minera | B30: 176049154 | C30: 1993968558
A31: Total | B31: =SUM(B13:B30) -> 84367917050 | C31: =SUM(C13:C30) -> 123366644325

Sheet Nota 26
A1: =Indice!C1 -> TECNOLOGIA DEL SUR S.A.E.(TECSUL S.A.E.) | E1: ER
A5: NOTA 26 - COSTO DE VENTAS
B8: En Guaraníes
A9: Costo Operativo | B9: 2022 | C9: 2021
A11: Existencia inicial del inventario | B11: - | C11: -
A12: Costo de Fletes Pagados | B12: 1390595987 | C12: 4190108308
A13: Costo Operativo de Materiales | B13: 9543578093 | C13: 19644449636
A14: Costo de Combustibles y Lubricantes | B14: 13665821389 | C14: 11151020529
A15: Costo de servicios prestados | B15: 18217667956 | C15: 28623169729
A16: Costo de Mantenimientos de Maquinarias y Equipos | B16: 4961427441 | C16: 7468959182
A17: Costo de Alquiler de Equipos | B17: 968140925 | C17: 3041987059
A18: Costo Tasa por Recoleccion de Basura | B18: 256500000 | C18: 342000000
A19: Costo de herramientas menores | B19: 247504120 | C19: 196594799
A20: Otros costos operativos | B20: 2205418792 | C20: 0
A21: Linea de negocio 2
A22: Existencia inicial del inventario
A23: + Compra de bienes y servicios
A24: + Costo de producción
A25: - Existencia final de inventario
A26: (nuevas lineas de negocio a incluir)
A27: Total costo de ventas | B27: =SUM($B$10:B26) -> 51456654703 | C27: =SUM($C$10:C26) -> 74658289242

Sheet Nota 27
A1: =Indice!C1 -> TECNOLOGIA DEL SUR S.A.E.(TECSUL S.A.E.) | G1: ER
A5: NOTA 27 - GASTOS
A6: (Esta nota deberá ser incluida cuando en el estado de resultados se haga mención a una cuenta de carácter general o cuyo nombre no permita una adecuada identificación de la naturaleza del gasto y su importe sea significativo)
A8: El rubro está compuesto de la siguiente forma:
A10: En guaraníes
C11: 2022 | F11: 2021
B12: Gastos de Ventas | C12: Gastos Administrativos | D12: Total | E12: Gastos de Ventas | F12: Gastos Administrativos | G12: Total
A13: Publicidad y Propaganda | B13: 123596639 | C13: 0 | D13: =+C13+B13 -> 123596639 | E13: 128685110 | F13: 0 | G13: =+F13+E13 -> 128685110
A14: Viaticos y Movilidad | B14: 201953773 | C14: 94270289 | D14: 296224062 | E14: 450680095 | F14: 230575674 | G14: =+E14+F14 -> 681255769
A15: Servicios de Señalizacion y carteleria | B15: 72017056 | C15: 0 | D15: 72017056 | E15: 151131386 | F15: 0 | G15: =+E15+F15 -> 151131386
A16: Sueldos y Jornales | B16: 8428197446 | C16: 1468439766 | D16: 9896637212 | E16: 10723795611 | F16: 2087665726 | G16: =+E16+F16 -> 12811461337
A17: Aporte Patronal | B17: 1390652575 | C17: 242292559 | D17: 1632945134 | E17: 1769423260 | F17: 344467842 | G17: 2113891102
A18: Aguinaldo | B18: 125691265 | C18: 1946667 | D18: 127637932 | E18: 856166581 | F18: 179200674 | G18: 1035367255
A19: Comisiones pagadas sobre ventas | B19: 294910091 | C19: 0 | D19: 294910091 | E19: 267655605 | F19: 0 | G19: 267655605
A20: Otros gastos de Ventas | B20: 72758543 | C20: 0 | D20: 72758543 | E20: 0 | F20: 0 | G20: 0
A21: Gastos de Consumiciones-Casino | B21: 470657053 | C21: 0 | D21: 470657053 | E21: 0 | F21: 0 | G21: 0
A22: Bonificacion Familiar | B22: 0 | C22: 0 | D22: 0 | E22: 457863 | F22: 343398 | G22: 801261
A23: Remuneracion Personal Superior | B23: 0 | C23: 360000000 | D23: 360000000 | E23: 0 | F23: 425909091 | G23: 425909091
A24: Gastos de Representacion | B24: 0 | C24: 158804859 | D24: 158804859 | E24: 0 | F24: 196735980 | G24: 196735980
A25: Honorarios Profesionales | B25: 0 | C25: 2672828601 | D25: 2672828601 | E25: 0 | F25: 2660624971 | G25: 2660624971
A26: Alquileres Pagados | B26: 0 | C26: 42526949 | D26: 42526949 | E26: 0 | F26: 312865217 | G26: 312865217
A27: Agua,luz,telefono e internet | B27: 0 | C27: 144656802 | D27: 144656802 | E27: 0 | F27: 286007502 | G27: 286007502
A28: Combustibles y Lubricantes | B28: 0 | C28: 47916686 | D28: 47916686 | E28: 0 | F28: 84803114 | G28: 84803114
A29: Reparaciones y Mantenimientos | B29: 0 | C29: 32356939 | D29: 32356939 | E29: 0 | F29: 130090911 | G29: 130090911
A30: Seguros Pagados | B30: 0 | C30: 1293649853 | D30: 1293649853 | E30: 0 | F30: 1888588658 | G30: 1888588658
A31: Utiles de Oficina | B31: 0 | C31: 33452095 | D31: 33452095 | E31: 0 | F31: 56898202 | G31: 56898202
A32: Donaciones y Contribuciones | B32: 0 | C32: 2181818 | D32: 2181818 | E32: 0 | F32: 12510000 | G32: 12510000
A33: Impuestos,tasas,patentes y otras contribuciones | B33: 0 | C33: 165018016 | D33: 165018016 | E33: 0 | F33: 212397877 | G33: 212397877
A34: Ley 2051/03 Art.41 | B34: 0 | C34: 103165737 | D34: 103165737 | E34: 0 | F34: 187921648 | G34: 187921648
A35: Gastos Generales | B35: 0 | C35: 160483594 | D35: 160483594 | E35: 0 | F35: 156018138 | G35: 156018138
A36: Servicios contratados | B36: 0 | C36: 1182092914 | D36: 1182092914 | E36: 0 | F36: 533581008 | G36: 533581008
A37: Impresos Varios | B37: 0 | C37: 67171815 | D37: 67171815 | E37: 0 | F37: 118435400 | G37: 118435400
A38: Servicios e Insumos informaticos | B38: 0 | C38: 149435086 | D38: 149435086 | E38: 0 | F38: 134398115 | G38: 134398115
A39: Gastos de seguridad | B39: 0 | C39: 380098898 | D39: 380098898 | E39: 0 | F39: 247755740 | G39: 247755740
A40: Suscripciones varias | B40: 0 | C40: 100356255 | D40: 100356255 | E40: 0 | F40: 136482500 | G40: 136482500
A41: Gastos no Deducibles | B41: 0 | C41: 516093506 | D41: =+C41+B41 -> 516093506 | E41: 592695268 | F41: 2154873163 | G41: 2747568431
A42: Iva Gasto 10% | B42: 0 | C42: 0 | D42: 0 | E42: 0 | F42: 31273 | G42: 31273
A43: Gastos de Escribania | B43: 0 | C43: 41423847 | D43: 41423847 | E43: 0 | F43: 140787148 | G43: 140787148
A44: Otros Gastos de Administracion | B44: 0 | C44: 994742 | D44: 994742 | E44: 0 | F44: 124562501 | G44: 124562501
A45: Otros Beneficios al Personal | B45: 0 | C45: 107913811 | D45: =+C45+B45 -> 107913811 | E45: 0 | F45: 0 | G45: 0
A46: Gastos de Capacitacion | B46: 0 | C46: 21355386 | D46: 21355386 | E46: 0 | F46: 14846366 | G46: =+E46+F46 -> 14846366
A47: Gastos de Limpieza | B47: 0 | C47: 35689771 | D47: 35689771 | E47: 0 | F47: 44531612 | G47: 44531612
A48: Gastos de Envio | B48: 0 | C48: 9189890 | D48: 9189890 | E48: 0 | F48: 22588764 | G48: 22588764
A49: Gastos de Personal | B49: 0 | C49: 50883055 | D49: 50883055 | E49: 0 | F49: 89695818 | G49: 89695818
A50: Gastos de Muebles y Enseres | B50: 0 | C50: 91529829 | D50: =+C50+B50 -> 91529829 | E50: 0 | F50: 53131010 | G50: 53131010
A51: Intereses, multas y recargos impositivos | B51: 0 | C51: 0 | D51: =+C51+B51 -> 0 | E51: 0 | F51: 0 | G51: 0
A52: Gastos de Licitacion | B52: 0 | C52: 194203 | D52: 194203 | E52: 0 | F52: 20910986 | G52: =+E52+F52 -> 20910986
A53: Regalos Empresariales | B53: 0 | C53: 590909 | D53: 590909 | E53: 0 | F53: 125551637 | G53: =+E53+F53 -> 125551637
A54: Gastos de Consumiciones-Casino | B54: 0 | C54: 225590301 | D54: 225590301 | E54: 0 | F54: 967684027 | G54: 967684027
A55: Gastos de Certificado de Nacionalizacion | B55: 0 | C55: 0 | D55: 0 | E55: 0 | F55: 0 | G55: 0
A56: Servicios de Consultoria y Asesoramiento | B56: 0 | C56: 0 | D56: 0 | E56: 0 | F56: 0 | G56: 0
A57: Depreciación bienes de uso del ejercicio | B57: 0 | C57: 6541324542 | D57: 6541324542 | E57: 0 | F57: 8051854437 | G57: 8051854437
A58: Amortización activos intangibles | B58: 0 | C58: 57561975 | D58: 57561975 | E58: 0 | F58: 114098424 | G58: 114098424
A59: Reserva Legal del Ejercicio | B59: 0 | C59: 0 | D59: 0 | E59: 0 | F59: 307729766 | G59: 307729766
G60: 0
A61: Certificado Emision de Garantia | B61: 0 | C61: 0 | D61: 0 | E61: 0 | F61: 331500000 | G61: 331500000
A62: Uniformes | B62: 0 | C62: 67964545 | D62: 67964545 | E62: 0 | F62: 38289998 | G62: 38289998
A63: Gastos de emision de Bonos | B63: 0 | C63: 7646689 | D63: 7646689 | E63: 0 | F63: 327538051 | G63: 327538051
A64: Gastos de Mejoras en oficina central | B64: 0 | C64: 0 | D64: 0 | E64: 0 | F64: 6520909 | G64: 6520909
A65: Gastos de Consumicion cena de fin de año | B65: 0 | C65: 7840465 | D65: 0 | E65: 0 | F65: 35340510 | G65: 35340510
A66: Utilidad/Perdida en venta de activos fijos | B66: 0 | C66: 0 | D66: 0 | E66: 0 | F66: 458034822 | G66: 458034822
A67: Juicios y Gastos Judiciales | B67: 0 | C67: 7585252 | D67: =+C67+B67 -> 7585252 | E67: 0 | F67: 0 | G67: 0
A68: Total | B68: =+SUM($B$13:B67) -> 11180434441 | C68: =+SUM($C$13:C67) -> 16694518916 | D68: =+SUM($D$13:D67) -> 27867112892 | E68: =+SUM($E$13:E66) -> 14940690779 | F68: =+SUM($F$13:F66) -> 24054378608 | G68: =+SUM($G$13:G66) -> 38995069387

Sheet Nota 28
A1: =Indice!C1 -> TECNOLOGIA DEL SUR S.A.E.(TECSUL S.A.E.) | E1: ER
A4: Nota 28 - Otros Ingresos y gastos operativos
A6: En guaraníes
A8: Otros ingresos | B8: 2022 | C8: 2021 | E8: Otros gastos | F8: 2022 | G8: 2021
A9: Ingreso por Venta de Activo Fijo | B9: 0 | C9: 374748138 | E9: (Detallar cuenta)
A10: Descuentos Obtenidos | B10: 65752999 | C10: 115996582
A11: Recupero de Siniestro | B11: 0 | C11: 0
A12: Otros Ingresos Operativos | B12: 114709531 | C12: 23661363
A13: Total | B13: =SUM($B$9:B12) -> 180462530 | C13: =SUM($C$9:C12) -> 514406083 | E13: Total | F13: =SUM($F$9:F12) -> 0 | G13: =SUM($G$9:G12) -> 0

Sheet Nota 29
A1: =Indice!C1 -> TECNOLOGIA DEL SUR S.A.E.(TECSUL S.A.E.) | E1: ER
A5: NOTA 29 - INGRESOS Y GASTOS FINANCIEROS NETOS
A6: En guaraníes
A8: Ingresos Financieros netos | B8: 2022 | C8: 2021 | E8: Gastos Financieros netos | F8: 2022 | G8: 2021
A9: Ganancias por Diferencia de Cambio | B9: 85969997 | C9: 1843201245 | E9: Intereses Pagados | F9: 3775113317 | G9: 3917731710
A10: Intereses Ganados | B10: 1762921131 | C10: 1595586455 | E10: Gastos Bancarios | F10: 118706941 | G10: 281175097
E11: Resultado por Diferencia de cambios | F11: 128452748 | G11: 1534262548
E12: Otros intereses pagados | F12: 373843344 | G12: 1115044013
A13: Total ingresos financieros | B13: =SUM($B9:B12) -> 1848891128 | C13: =SUM($C9:C12) -> 3438787700 | E13: Total gastos financieros | F13: =SUM($F9:F12) -> 4396116350 | G13: =SUM($G9:G12) -> 6848213368

Sheet Nota 30
A1: =Indice!C1 -> TECNOLOGIA DEL SUR S.A.E.(TECSUL S.A.E.) | E1: ER
A4: Nota 30 - Resultado de inversiones en asociadas
A5: En guaraníes
B6: NO APLICABLE
A8: Resultado de inversiones en asociadas | B8: 2022 | C8: 2021
A9: (Detallar cuenta)
A16: Total | B16: =SUM($B9:B15) -> 0 | C16: =SUM($C9:C15) -> 0

Sheet Nota 31
A1: =Indice!C1 -> TECNOLOGIA DEL SUR S.A.E.(TECSUL S.A.E.) | E1: ER
A4: Nota 31 - Resultado participación minoritaria
A5: En guaraníes
B6: NO APLICABLE
A8: Resultado participación minoritaria | B8: 2022 | C8: 2021
A9: (Detallar cuenta)
A16: Total | B16: =SUM($B9:B15) -> 0 | C16: =SUM($C9:C15) -> 0

Sheet Nota 32
A1: =Indice!C1 -> TECNOLOGIA DEL SUR S.A.E.(TECSUL S.A.E.) | E1: ER
A4: Nota 32 - IMPUESTO A LA RENTA
A5: En guaraníes
B7: 2022 | C7: 2021
A8: Impuesto a la renta
A9: Impuesto a la renta | B9: 0 | C9: 971400566
A14: Total | B14: =SUM($B8:B13) -> 0 | C14: =SUM($C8:C13) -> 971400566

Sheet Nota 33
A1: =Indice!C1 -> TECNOLOGIA DEL SUR S.A.E.(TECSUL S.A.E.) | E1: ER
A4: Nota 33 - Resultado extraordinario neto de impuesto a la renta
A5: En guaraníes
B7: 2022 | C7: 2021
A8: Conceptos
A9: Resultado extraordinario neto de impuesto a la renta | B9: 0 | C9: 5846865545
A15: Total | B15: =SUM($B8:B14) -> 0 | C15: =SUM($C8:C14) -> 5846865545

Sheet Nota 34
A1: =Indice!C1 -> TECNOLOGIA DEL SUR S.A.E.(TECSUL S.A.E.) | E1: ER
B3: NO APLICABLE
A4: Nota 34 - Resultado sobre actividades discontinuadas neto de impuesto a la renta
A5: En guaraníes
A7: Resultado sobre actividades discontinuadas neto de impuesto a la renta | B7: 2022 | C7: 2021
A9: (nueva cuenta a incluir)
A10: Subtotal
A11: - Impuesto a la renta
A12: Total | B12: =SUM($B8:B11) -> 0 | C12: =SUM($C8:C11) -> 0

Sheet Nota 35
A1: =Indice!C1 -> TECNOLOGIA DEL SUR S.A.E.(TECSUL S.A.E.) | E1: ER
A4: NOTA 35- UTILIDAD (PÉRDIDA) NETA DEL AÑO Y POR ACCION ORDINARIA
B7: 2022 | C7: 2021
A8: Cantidad de Acciones Ordinarias en Circulación | B8: 50700 | C8: 46000
A9: Utilidad Neta | B9: 2669546298 | C9: =ER!D31 -> 5846865545
A10: Utilidad Neta por Acción Ordinaria | B10: =IFERROR(B9/B8,0) -> 52653.77314 | C10: =IFERROR(C9/C8,0) -> 127105.7727

Sheet Nota 36
A1: =Indice!C1 -> TECNOLOGIA DEL SUR S.A.E.(TECSUL S.A.E.) | E1: Indice
C3: NO APLICABLE
A4: NOTA 36 - ACTIVOS GRAVADOS
A6: Los siguientes bienes de propiedad de la Sociedad han sido hipotecados y prendados en garantía de obligaciones financieras.
A8: =IFERROR("Al "&DAY(Indice!B6)&" de "&VLOOKUP(marzo(Indice!B6marzo),Indice!S:T,2,0)&" de "&AÑO2022(Indice!B6-365),"Al 30 de junio de año 2022") -> Al 30 de junio de año 2022
A9: Tipo de Activo | B9: Datos del activo gravado | C9: Tipo de garantía | D9: Importe (indicar moneda) | E9: A favor de
A15: =IFERROR("Al "&DAY(Indice!B6)&" de "&VLOOKUP(MONTH(Indice!B6),Indice!S:T,2,0)&" de "&YEAR(Indice!B6-1),"Al dia... de mes… de año 2XX2…") -> Al 30 de Septiembre de 2022
A16: Tipo de Activo | B16: Datos del activo gravado | C16: Tipo de garantía | D16: Importe (indicar moneda) | E16: A favor de

Sheet Nota 37
A1: =Indice!C1 -> TECNOLOGIA DEL SUR S.A.E.(TECSUL S.A.E.) | E1: Indice
A4: NOTA 37 - CONTINGENCIAS Y COMPROMISOS
A6: =IFERROR("Los principales contratos suscriptos por la Sociedad, vigentes al "&DAY(Indice!B6)&" de "&VLOOKUP(MONTH(Indice!B6),Indice!S:T,2,0)&" de "&YEAR(Indice!B6-1)&" son:","Los principales contratos suscriptos por la Sociedad, vigentes al 31 de diciembre 2020 son:") -> Los principales contratos suscriptos por la Sociedad, vigentes al 30 de Septiembre de 2022 son:
A7: a) Obra Desague pluvial de la Avenida Molas Lopez
A8: b) Rehabilitacion y pavimentacion asfaltica del tramo Arroyo y Esteros - Direccion de Vialidad - Ad Referendum a la reprogramacion presupestaria. Contrato 710/2019.
A9: c) Mejoramiento y Rehabilitacion del tramo Avenida de la Victoria de la Ciudad de San Lorenzo Tramo 2 y 3. Contrato 719/2019.
A10: d) Mejoramiento y Rehabilitacion del tramo Avenida de la Victoria de la Ciudad de San Lorenzo Tramo 2 y 3. Contrato 719/2019. - ADENDA
A11: e) Obra Corredores del Este Acceso al puente de la integracion
A12: f) Rehabilitacion y Pavimentacion del tramo San Juan Nepomuceno Ruta Nº6
A13: g)Obras de Mejoramiento del Arroyo Sosa- Barrio Obrero de Asuncion - Segunda Etapa
A14: Obra Ruta de la leche - Region Occidental - Lote Nº3
A15: i)Obras Urbanizacion Costa del Lago
A16: j)Construccion de Escuelas-MINISTERIO DE EDUCACION
A17: =IFERROR("Al "&(Indice!B6)&" de "&VLOOKUP((Indice!B6),Indice!S:T,2,0)&" de "&(Indice!B6-1)&" no existen situaciones contingentes, ni reclamos que pudieran resultar en la generación de obligaciones para la Sociedad adicionales a las que se presentan en estos estados financieros.","Al 30 de junio de 2022 no existen situaciones contingentes, ni reclamos que pudieran resultar en la generación de obligaciones para la Sociedad adicionales a las que se presentan en estos estados financieros.") -> Al 30 de junio de 2022 no existen situaciones contingentes, ni reclamos que pudieran resultar en la generación de obligaciones para la Sociedad adicionales a las que se presentan en estos estados financieros.
A21: Obs.: Esta información debe estar ajustada a lo requerido por la Norma de Información Financiera N° 5 Contingencias y sucesos que ocurren después de la fecha del balance.

Sheet Nota 38
A1: =Indice!C1 -> TECNOLOGIA DEL SUR S.A.E.(TECSUL S.A.E.) | D1: Índice
B3: NO APLICABLE
A4: NOTA 38 - IMPUESTO DIFERIDO
A5: En miles de guaraníes
A6: Al … de …........... 20X2 la Sociedad constituyó una provisión para impuesto a la renta de Guaraníes …... (Al … de …...............20X1: Guaraníes …....) / (La Sociedad no ha constituido provisión para impuesto a la renta, debido a que a esa fecha la misma generó renta imponible que fue compensada con quebrantos impositivos acumulados a esa fecha).
A7: La Sociedad contabiliza el impuesto a la renta por el método de lo diferido, método del pasivo. El mencionado método establece la determinación de activos o pasivos impositivos diferidos netos basados en las diferencias temporales y temporarias, con cargo a la línea Impuesto a la renta del Estado de resultados.
A9: El siguiente cuadro detalla las diferencias temporales a la tasa del impuesto a los efectos de determinación del impuesto diferido:
B11: 2022 | C11: 2021
A12: Activos y pasivos impositivos diferidos:
A13: Caja y Bancos
A14: Inversiones
A15: Previsión para deudores incobrables
A16: Bienes de uso
A17: Activos intangibles
A18: Previsión del pasivo
A19: Deudas comerciales y bancarias
A20: Bienes de cambio
A21: Sub - total
A22: Previsión para impuestos diferidos netos
A23: Total activo/pasivo impositivo diferido neto antes de quebrantos
A24: Quebranto impositivo
A25: Total

Sheet Nota 39
A1: =Indice!C1 -> TECNOLOGIA DEL SUR S.A.E.(TECSUL S.A.E.) | E1: Indice
A4: NO APLICABLE
A5: NOTA 39 - HECHOS POSTERIORES
A6: ='[4]5-NOTAS A LOS EEFF'!$B$299 -> 10. OTRAS NOTAS Y REVELACIONES QUE SE CONSIDEREN NECESARIAS DE CONFORMIDAD A LAS NORMAS CONTABLES
A9: Entre la fecha de cierre del ejercicio y la fecha de preparación de estos estados financieros, no han ocurrido hechos significativos de carácter financiero o de otra índole que afecten la situación patrimonial o financiera o los resultados de la Sociedad al 30 de setiembre de 2022

Sheet Nota 40
A1: =Indice!C1 -> TECNOLOGIA DEL SUR S.A.E.(TECSUL S.A.E.) | C1: Indice
A4: NO APLICABLE
A5: NOTA 40 - SALDOS Y TRANSACCIONES CON PARTES RELACIONADAS
A6: En guaraníes
B10: 2022 | C10: 2021
A11: ACTIVO
A12: Inversiones temporales | B12: 0 | C12: 0
A13: Cuentas a cobrar comerciales | B13: 0 | C13: 0
A14: Otros créditos | B14: 0 | C14: 0
A15: Total activo | B15: 0 | C15: 0
A16: PASIVO | B16: 0 | C16: 0
A17: Cuentas por pagar comerciales | B17: 0 | C17: 0
A18: Préstamos a corto plazo | B18: 0 | C18: 0
A19: Provisiones | B19: 0 | C19: 0
A20: Préstamos a largo plazo | B20: 0 | C20: 0
A21: Otros pasivos | B21: 0 | C21: 0
A22: Total pasivo | B22: 0 | C22: 0
B26: 2022 | C26: 2021
A27: Costo de ventas
A28: Compras a …. | B28: 0 | C28: 0
A30: Gastos administrativos
A31: Honorarios por servicios | B31: 0 | C31: 0
A32: Otros | B32: 0 | C32: 0
A33: Gastos financieros | B33: 0
A34: Intereses pagados por préstamos | B34: 0 | C34: 0

Sheet Base de Monedas
A1: PYG | B1: Guaraní | C1: Índice
A2: USD | B2: Dólar estadounidense
A3: EUR | B3: Euro
A4: AED | B4: Dírham de los Emiratos Árabes Unidos
A5: AFN | B5: Afgani
A6: ALL | B6: Lek
A7: AMD | B7: Dram armenio
A8: ANG | B8: Florín antillano neerlandés
A9: AOA | B9: Kwanza
A10: ARS | B10: Peso argentino
A11: AUD | B11: Dólar australiano
A12: AWG | B12: Florín arubeño
A13: AZN | B13: Manat azerbaiyano
A14: BAM | B14: Marco convertible
A15: BBD | B15: Dólar de Barbados
A16: BDT | B16: Taka
A17: BGN | B17: Lev búlgaro
A18: BHD | B18: Dinar bareiní
A19: BIF | B19: Franco de Burundi
A20: BMD | B20: Dólar bermudeño
A21: BND | B21: Dólar de Brunéi
A22: BOB | B22: Boliviano
A23: BOV | B23: MVDOL
A24: BRL | B24: Real brasileño
A25: BSD | B25: Dólar bahameño
A26: BTN | B26: Ngultrum
A27: BWP | B27: Pula
A28: BYN | B28: Rublo bielorruso
A29: BZD | B29: Dólar beliceño
A30: CAD | B30: Dólar canadiense
A31: CDF | B31: Franco congoleño
A32: CHE | B32: Euro WIR
A33: CHF | B33: Franco suizo
A34: CHW | B34: Franco WIR
A35: CLF | B35: Unidad de fomento
A36: CLP | B36: Peso chileno
A37: CNY | B37: Yuan chino
A38: COP | B38: Peso colombiano
A39: COU | B39: Unidad de valor real
A40: CRC | B40: Colón costarricense
A41: CUC | B41: Peso convertible
A42: CUP | B42: Peso cubano
A43: CVE | B43: Escudo caboverdiano
A44: CZK | B44: Corona checa
A45: DJF | B45: Franco yibutiano
A46: DKK | B46: Corona danesa
A47: DOP | B47: Peso dominicano
A48: DZD | B48: Dinar argelino
A49: EGP | B49: Libra egipcia
A50: ERN | B50: Nakfa
A51: ETB | B51: Birr etíope
A52: FJD | B52: Dólar fiyiano
A53: FKP | B53: Libra malvinense
A54: GBP | B54: Libra esterlina
A55: GEL | B55: Lari
A56: GHS | B56: Cedi ghanés
A57: GIP | B57: Libra de Gibraltar
A58: GMD | B58: Dalasi
A59: GNF | B59: Franco guineano
A60: GTQ | B60: Quetzal
A61: GYD | B61: Dólar guyanés
A62: HKD | B62: Dólar de Hong Kong
A63: HNL | B63: Lempira
A64: HRK | B64: Kuna
A65: HTG | B65: Gourde
A66: HUF | B66: Forinto
A67: IDR | B67: Rupia indonesia
A68: ILS | B68: Nuevo shéquel israelí
A69: INR | B69: Rupia india
A70: IQD | B70: Dinar iraquí
A71: IRR | B71: Rial iraní
A72: ISK | B72: Corona islandesa
A73: JMD | B73: Dólar jamaiquino
A74: JOD | B74: Dinar jordano
A75: JPY | B75: Yen
A76: KES | B76: Chelín keniano
A77: KGS | B77: Som
A78: KHR | B78: Riel
A79: KMF | B79: Franco comorense
A80: KPW | B80: Won norcoreano
A81: KRW | B81: Won
A82: KWD | B82: Dinar kuwaití
A83: KYD | B83: Dólar de las Islas Caimán
A84: KZT | B84: Tenge
A85: LAK | B85: Kip
A86: LBP | B86: Libra libanesa
A87: LKR | B87: Rupia de Sri Lanka
A88: LRD | B88: Dólar liberiano
A89: LSL | B89: Loti
A90: LYD | B90: Dinar libio
A91: MAD | B91: Dírham marroquí
A92: MDL | B92: Leu moldavo
A93: MGA | B93: Ariary malgache
A94: MKD | B94: Denar
A95: MMK | B95: Kyat
A96: MNT | B96: Tugrik
A97: MOP | B97: Pataca
A98: MRU | B98: Uguiya
A99: MUR | B99: Rupia de Mauricio
A100: MVR | B100: Rufiyaa
A101: MWK | B101: Kwacha
A102: MXN | B102: Peso mexicano
A103: MXV | B103: Unidad de Inversión (UDI) mexicana
A104: MYR | B104: Ringgit malayo
A105: MZN | B105: Metical mozambiqueño
A106: NAD | B106: Dólar namibio
A107: NGN | B107: Naira
A108: NIO | B108: Córdoba
A109: NOK | B109: Corona noruega
A110: NPR | B110: Rupia nepalí
A111: NZD | B111: Dólar neozelandés
A112: OMR | B112: Rial omaní
A113: PAB | B113: Balboa
A114: PEN | B114: Sol
A115: PGK | B115: Kina
A116: PHP | B116: Peso filipino
A117: PKR | B117: Rupia pakistaní
A118: PLN | B118: Złoty
A119: QAR | B119: Riyal qatarí
A120: RON | B120: Leu rumano
A121: RSD | B121: Dinar serbio
A122: RUB | B122: Rublo ruso
A123: RWF | B123: Franco ruandés
A124: SAR | B124: Riyal saudí
A125: SBD | B125: Dólar de las Islas Salomón
A126: SCR | B126: Rupia seychelense
A127: SDG | B127: Dinar sudanés
A128: SEK | B128: Corona sueca
A129: SGD | B129: Dólar de Singapur
A130: SHP | B130: Libra de Santa Elena
A131: SLL | B131: Leone
A132: SOS | B132: Chelín somalí
A133: SRD | B133: Dólar surinamés
A134: SSP | B134: Libra sursudanesa
A135: STN | B135: Dobra
A136: SVC | B136: Colon Salvadoreño
A137: SYP | B137: Libra siria
A138: SZL | B138: Lilangeni
A139: THB | B139: Baht
A140: TJS | B140: Somoni tayiko
A141: TMT | B141: Manat turcomano
A142: TND | B142: Dinar tunecino
A143: TOP | B143: Paʻanga
A144: TRY | B144: Lira turca
A145: TTD | B145: Dólar de Trinidad y Tobago
A146: TWD | B146: Nuevo dólar taiwanés
A147: TZS | B147: Chelín tanzano
A148: UAH | B148: Grivna
A149: UGX | B149: Chelín ugandés
A150: USN | B150: Dólar estadounidense (Siguiente día)
A151: UYI | B151: Peso en Unidades Indexadas (Uruguay)
A152: UYU | B152: Peso uruguayo
A153: UYW | B153: Unidad Previsional
A154: UZS | B154: Som uzbeko
A155: VES7​ | B155: Bolívar soberano
A156: VND | B156: Dong vietnamita
A157: VUV | B157: Vatu
A158: WST | B158: Tala
A159: XAF | B159: Franco CFA de África Central
A160: XAG | B160: Plata (una onza troy)
A161: XAU | B161: Oro (una onza troy)
A162: XBA | B162: Unidad compuesta europea (EURCO) (Unidad del mercados de bonos)
A163: XBB | B163: Unidad Monetaria europea (E.M.U.-6) (Unidad del mercado de bonos)
A164: XBC | B164: Unidad europea de cuenta 9 (E.U.A.-9) (Unidad del mercado de bonos)
A165: XBD | B165: Unidad europea de cuenta 17 (E.U.A.-17) (Unidad del mercado de bonos)
A166: XCD | B166: Dólar del Caribe Oriental
A167: XDR | B167: Derechos especiales de giro
A168: XOF | B168: Franco CFA de África Occidental
A169: XPD | B169: Paladio (una onza troy)
A170: XPF | B170: Franco CFP
A171: XPT | B171: Platino (una onza troy)
A172: XSU | B172: SUCRE
A173: XTS | B173: Reservado para pruebas
A174: XUA | B174: Unidad de cuenta BAD
A175: XXX | B175: Sin divisa
A176: YER | B176: Rial yemení
A177: ZAR | B177: Rand
A178: ZMW | B178: Kwacha zambiano
A179: ZWL | B179: Dólar zimbabuense
